Workbook

Sheet TDB
AC1: q
B2: =rappel -> France: résultats MCB 2015 | H2: Excel1895: TABLEAU DE BORD | AD2: http://www.lemonde.fr/carte-departements/
X3: =UPPER(TEXT(TODAY(),"mmm")) -> MARS
H4: MCB: Résultats régionaux 2015 | X4: =UPPER(TEXT(TODAY(),"j")) -> 11
X7: =UPPER(TEXT(TODAY(),"aaaa")) -> 2016
Q9: Infos clés
AC11: 44R | AD11: Alsace-Champagne-Ardenne-Lorraine
S12: =I36 -> 2015 | V12: =J36 -> 2014 | AC12: 75R | AD12: Aquitaine-Limousin-Poitou-Charentes
R13: CA: | S13: =calculTMB!G19 -> 3,489,417 € | V13: =calculTMB!H19 -> 3,296,257 € | Y13: =(S13-V13)/V13 -> 6% | AC13: 84R | AD13: Auvergne-Rhône-Alpes
AC14: 27R | AD14: Bourgogne-Franche-Comté
AC15: 53R | AD15: Bretagne
AC16: 24R | AD16: Centre-Val de Loire
AC17: 94R | AD17: Corse
AC18: 11R | AD18: Île-de-France
AC19: 76R | AD19: Languedoc-Roussillon-Midi-Pyrénées
AC20: 32R | AD20: Nord-Pas-de-Calais-Picardie
AC21: 28R | AD21: Normandie
AC22: 52R | AD22: Pays de la Loire
R23: TOP 3 Régions (MCB) | AC23: 93R | AD23: Provence-Alpes-Côte d'Azur
R24: 1 | S24: =VLOOKUP(LARGE(nomRegions!$A$17:$A$29,ROW(nomRegions!A1)),nomRegions!$A$17:$B$29,2,0) -> Bretagne
R25: 2 | S25: =VLOOKUP(LARGE(nomRegions!$A$17:$A$29,ROW(nomRegions!A2)),nomRegions!$A$17:$B$29,2,0) -> Nord-Pas-de-Calais-Picardie
R26: 3 | S26: =VLOOKUP(LARGE(nomRegions!$A$17:$A$29,ROW(nomRegions!A3)),nomRegions!$A$17:$B$29,2,0) -> Auvergne-Rhône-Alpes
R28: TOP 3 Depts (MCB)
R29: 1 | S29: =VLOOKUP(LARGE(nomDept!$F$2:$F$97,ROW(nomDept!A1)),nomDept!$F$2:$H$97,3,0) -> Haute-Marne (52)
R30: 2 | S30: =VLOOKUP(LARGE(nomDept!$F$2:$F$97,ROW(nomDept!A2)),nomDept!$F$2:$H$97,3,0) -> Drôme (26)
R31: 3 | S31: =VLOOKUP(LARGE(nomDept!$F$2:$F$97,ROW(nomDept!A3)),nomDept!$F$2:$H$97,3,0) -> Finistère (29)
R33: TOP 3 Produits (MCB)
H34: =nomRegions!J19&": contribution à la MCB par produit" -> France métropolitaine: contribution à la MCB par produit | R34: 1 | S34: =VLOOKUP(LARGE(nomRegions!$M$35:$M$39,ROW(nomRegions!A1)),nomRegions!$M$35:$N$39,2,0) -> Riz
R35: 2 | S35: =VLOOKUP(LARGE(nomRegions!$M$35:$M$39,ROW(nomRegions!A2)),nomRegions!$M$35:$N$39,2,0) -> Lait
I36: =nomRegions!M19 -> 2015 | J36: =nomRegions!L19 -> 2014 | R36: 3 | S36: =VLOOKUP(LARGE(nomRegions!$M$35:$M$39,ROW(nomRegions!A3)),nomRegions!$M$35:$N$39,2,0) -> Fromage
H37: =nomRegions!K20 -> Fromage | I37: =nomRegions!M20 -> 318,895 € | J37: =nomRegions!L20 -> 300,434 € | K37: =IFERROR((I37-J37)/J37,"") -> 6%
H38: =nomRegions!K21 -> Lait | I38: =nomRegions!M21 -> 419,412 € | J38: =nomRegions!L21 -> 401,805 € | K38: =IFERROR((I38-J38)/J38,"") -> 4%
H39: =nomRegions!K22 -> Riz | I39: =nomRegions!M22 -> 435,645 € | J39: =nomRegions!L22 -> 459,363 € | K39: -5%
H40: =nomRegions!K23 -> Sucre | I40: =nomRegions!M23 -> 291,696 € | J40: =nomRegions!L23 -> 276,365 € | K40: 6%
H41: =nomRegions!K24 -> Yaourt | I41: =nomRegions!M24 -> 222,696 € | J41: =nomRegions!L24 -> 190,107 € | K41: 17% | P41: powered by excel1895. Tous droits réservés ©
H42: Total | I42: =nomRegions!M25 -> 1,688,344 € | J42: =nomRegions!L25 -> 1,628,074 € | K42: 4% | P42: contact: seye.cak@gmail.com

Sheet depts (hidden)

Sheet deptAvecNum (hidden)

Sheet testDept (hidden)

Sheet Config
G2: 0% | H2: <75% | J2: classe0
G3: 75% | H3: 75% et < 85% | J3: classe1
G4: 85% | H4: 85% et < 100% | J4: classe2
G5: 101% | H5: >101% | J5: classe3

Sheet calculTMB (hidden)
H1: Bretagne
I2: nomRegion | J2: 2011 | K2: 2012 | L2: rang
I3: Corse | J3: 1701 | K3: 1430 | L3: =IF($H$1=I3,K3,"") -> 
A4: grapheD | B4: 2012 | C4: 2011 | I4: Normandie | J4: 2255 | K4: 2336 | L4: =IF($H$1=I4,K4,"") -> 
A5: MCB | B5: =SUM(donnees!$G$2:$G$420) -> 1688343.79 | C5: =SUM(donnees!$E$2:$E$420) -> 1628074.43 | I5: Provence-Alpes-Côte d'Azur | J5: 3134 | K5: 3121
A6: CT | B6: =SUM(donnees!$L$2:$L$420) -> 1773988.1 | C6: =SUM(donnees!$K$2:$K$420) -> 1710086.8 | I6: Pays de la Loire | J6: 1811 | K6: 3363
A7: TMB | B7: =B5/B6 -> 95.17% | C7: =C5/C6 -> 95.20% | D7: =((C5*1.25)/C6*1.1) -> 131% | I7: Bretagne | J7: 1407 | K7: 3412 | L7: 3412
I8: Centre-Val de Loire | J8: 1844 | K8: 3770
A9: top 5 des produits les plus vendus dans la région (Dept) | I9: Nord-Pas-de-Calais-Picardie | J9: 1942 | K9: 4167
A10: France | B10: 2012 | C10: 2011 | I10: Île-de-France | J10: 3956 | K10: 5357
A11: Fromage | B11: =SUMIF(donnees!$D:$D,calculTMB!$A11,donnees!$J:$J) -> 144857 | C11: =SUMIF(donnees!$D:$D,calculTMB!$A11,donnees!$H:$H) -> 136561 | D11: Fromage | E11: 3.00 € | I11: Bourgogne-Franche-Comté | J11: 3172 | K11: 6838
A12: Lait | B12: =SUMIF(donnees!$D:$D,calculTMB!$A12,donnees!$J:$J) -> 139804 | C12: =SUMIF(donnees!$D:$D,calculTMB!$A12,donnees!$H:$H) -> 133935 | D12: Lait | E12: 3.99 € | I12: Auvergne-Rhône-Alpes | J12: 4950 | K12: 7487
A13: Riz | B13: =SUMIF(donnees!$D:$D,calculTMB!$A13,donnees!$J:$J) -> 145215 | C13: =SUMIF(donnees!$D:$D,calculTMB!$A13,donnees!$H:$H) -> 153121 | D13: Riz | E13: 4.50 € | I13: Alsace-Champagne-Ardenne-Lorraine | J13: 4854 | K13: 7499
A14: Sucre | B14: =SUMIF(donnees!$D:$D,calculTMB!$A14,donnees!$J:$J) -> 146581 | C14: =SUMIF(donnees!$D:$D,calculTMB!$A14,donnees!$H:$H) -> 138877 | D14: Sucre | E14: 6.50 € | I14: Languedoc-Roussillon-Midi-Pyrénées | J14: 5642 | K14: 8216
A15: Yaourt | B15: =SUMIF(donnees!$D:$D,calculTMB!$A15,donnees!$J:$J) -> 148464 | C15: =SUMIF(donnees!$D:$D,calculTMB!$A15,donnees!$H:$H) -> 126738 | D15: Yaourt | E15: 6.00 € | I15: Aquitaine-Limousin-Poitou-Charentes | J15: 5486 | K15: 8890
A17: Dept | B17: 2012 | C17: 2011
A18: Fromage | B18: =SUMIFS(donnees!$J:$J,donnees!$B:$B,calculTMB!$A$23,donnees!$D:$D,calculTMB!$A18) -> 0 | C18: =SUMIFS(donnees!$H:$H,donnees!$B:$B,calculTMB!$A$23,donnees!$D:$D,calculTMB!$A18) -> 0 | G18: 2012 | H18: 2011
A19: Lait | B19: =SUMIFS(donnees!$J:$J,donnees!$B:$B,calculTMB!$A$23,donnees!$D:$D,calculTMB!$A19) -> 0 | C19: =SUMIFS(donnees!$H:$H,donnees!$B:$B,calculTMB!$A$23,donnees!$D:$D,calculTMB!$A19) -> 0 | F19: CA global | G19: =SUMPRODUCT(B11:B15,E11:E15) -> 3489416.96 | H19: =SUMPRODUCT(C11:C15,E11:E15) -> 3296256.65 | I19: =(G19-H19)/H19 -> 6%
A20: Riz | B20: =SUMIFS(donnees!$J:$J,donnees!$B:$B,calculTMB!$A$23,donnees!$D:$D,calculTMB!$A20) -> 0 | C20: =SUMIFS(donnees!$H:$H,donnees!$B:$B,calculTMB!$A$23,donnees!$D:$D,calculTMB!$A20) -> 0
A21: Sucre | B21: =SUMIFS(donnees!$J:$J,donnees!$B:$B,calculTMB!$A$23,donnees!$D:$D,calculTMB!$A21) -> 0 | C21: =SUMIFS(donnees!$H:$H,donnees!$B:$B,calculTMB!$A$23,donnees!$D:$D,calculTMB!$A21) -> 0
A22: Yaourt | B22: =SUMIFS(donnees!$J:$J,donnees!$B:$B,calculTMB!$A$23,donnees!$D:$D,calculTMB!$A22) -> 0 | C22: =SUMIFS(donnees!$H:$H,donnees!$B:$B,calculTMB!$A$23,donnees!$D:$D,calculTMB!$A22) -> 0
A23: =actDept -> 
A25: Region | B25: 2012 | C25: 2011
A26: Fromage | B26: =SUMIFS(donnees!$J:$J,donnees!$C:$C,calculTMB!$A$31,donnees!$D:$D,calculTMB!$A26) -> 20932 | C26: =SUMIFS(donnees!$H:$H,donnees!$C:$C,calculTMB!$A$31,donnees!$D:$D,calculTMB!$A26) -> 22203
A27: Lait | B27: =SUMIFS(donnees!$J:$J,donnees!$C:$C,calculTMB!$A$31,donnees!$D:$D,calculTMB!$A27) -> 20849 | C27: =SUMIFS(donnees!$H:$H,donnees!$C:$C,calculTMB!$A$31,donnees!$D:$D,calculTMB!$A27) -> 17374
A28: Riz | B28: =SUMIFS(donnees!$J:$J,donnees!$C:$C,calculTMB!$A$31,donnees!$D:$D,calculTMB!$A28) -> 19594 | C28: =SUMIFS(donnees!$H:$H,donnees!$C:$C,calculTMB!$A$31,donnees!$D:$D,calculTMB!$A28) -> 18523
A29: Sucre | B29: =SUMIFS(donnees!$J:$J,donnees!$C:$C,calculTMB!$A$31,donnees!$D:$D,calculTMB!$A29) -> 21067 | C29: =SUMIFS(donnees!$H:$H,donnees!$C:$C,calculTMB!$A$31,donnees!$D:$D,calculTMB!$A29) -> 20515
A30: Yaourt | B30: =SUMIFS(donnees!$J:$J,donnees!$C:$C,calculTMB!$A$31,donnees!$D:$D,calculTMB!$A30) -> 22690 | C30: =SUMIFS(donnees!$H:$H,donnees!$C:$C,calculTMB!$A$31,donnees!$D:$D,calculTMB!$A30) -> 18886
A31: =actRegion -> Languedoc-Roussillon-Midi-Pyrénées
A35: grapheE | B35: 2012 | C35: 2011
A36: Fromage | B36: =IF(typeD="R",calculTMB!B26,IF(typeD="D",calculTMB!B18,calculTMB!B11)) -> 144857 | C36: =IF(typeD="R",calculTMB!C26,IF(typeD="D",calculTMB!C18,calculTMB!C11)) -> 136561
A37: Lait | B37: =IF(typeD="R",calculTMB!B27,IF(typeD="D",calculTMB!B19,calculTMB!B12)) -> 139804 | C37: =IF(typeD="R",calculTMB!C27,IF(typeD="D",calculTMB!C19,calculTMB!C12)) -> 133935
A38: Riz | B38: =IF(typeD="R",calculTMB!B28,IF(typeD="D",calculTMB!B20,calculTMB!B13)) -> 145215 | C38: =IF(typeD="R",calculTMB!C28,IF(typeD="D",calculTMB!C20,calculTMB!C13)) -> 153121
A39: Sucre | B39: =IF(typeD="R",calculTMB!B29,IF(typeD="D",calculTMB!B21,calculTMB!B14)) -> 146581 | C39: =IF(typeD="R",calculTMB!C29,IF(typeD="D",calculTMB!C21,calculTMB!C14)) -> 138877
A40: Yaourt | B40: =IF(typeD="R",calculTMB!B30,IF(typeD="D",calculTMB!B22,calculTMB!B15)) -> 148464 | C40: =IF(typeD="R",calculTMB!C30,IF(typeD="D",calculTMB!C22,calculTMB!C15)) -> 126738
A42: tireGraphe | B42: =nomRegions!J19&": Qtés vendues par produit" -> France métropolitaine: Qtés vendues par produit

Sheet donnees
A1: numDept | B1: nomDept | C1: nomReg | D1: nomProd | E1: MCB_2014 | F1: MCB_Cible_2015 | G1: MCB_2015 | H1: QteV_2014 | I1: QteCible | J1: QteV_2015 | K1: CT_2014 | L1: CT_2015 | Q1: nomProduit | R1: coutProd | S1: prixProd
A2: 1 | B2: Ain | C2: Auvergne-Rhône-Alpes | D2: Fromage | E2: =H2*VLOOKUP($D2,$Q$2:$S$6,3,0)-K2 -> 2,730 $ | F2: =I2*VLOOKUP($D2,$Q$2:$S$6,3,0)-I2*VLOOKUP($D2,$Q$2:$S$6,2,0) -> 3,276 $ | G2: =J2*VLOOKUP($D2,$Q$2:$S$6,3,0)-L2 -> 4,928 $ | H2: 1241 | I2: =INT(H2*1.2) -> 1489 | J2: 2240 | K2: =H2*VLOOKUP($D2,$Q$2:$S$6,2,0) -> 2,854 $ | L2: =J2*VLOOKUP($D2,$Q$2:$S$6,2,0) -> 5,152 $ | Q2: Yaourt | R2: 1.50 € | S2: 3.00 €
A3: 1 | B3: Ain | C3: Auvergne-Rhône-Alpes | D3: Lait | E3: =H3*VLOOKUP($D3,$Q$2:$S$6,3,0)-K3 -> 4,743 $ | F3: =I3*VLOOKUP($D3,$Q$2:$S$6,3,0)-I3*VLOOKUP($D3,$Q$2:$S$6,2,0) -> 5,691 $ | G3: =J3*VLOOKUP($D3,$Q$2:$S$6,3,0)-L3 -> 3,996 $ | H3: 1581 | I3: =INT(H3*1.2) -> 1897 | J3: 1332 | K3: =H3*VLOOKUP($D3,$Q$2:$S$6,2,0) -> 5,534 $ | L3: =J3*VLOOKUP($D3,$Q$2:$S$6,2,0) -> 4,662 $ | Q3: Sucre | R3: 2.00 € | S3: 3.99 €
A4: 1 | B4: Ain | C4: Auvergne-Rhône-Alpes | D4: Sucre | E4: 7,960 $ | F4: 9,552 $ | G4: =J4*VLOOKUP($D4,$Q$2:$S$6,3,0)-L4 -> 4,231 $ | H4: 4000 | I4: 4800 | J4: 2126 | K4: 8,000 $ | L4: 4,252 $ | Q4: Fromage | R4: 2.30 € | S4: 4.50 €
A5: 1 | B5: Ain | C5: Auvergne-Rhône-Alpes | D5: Riz | E5: 6,294 $ | F5: 7,551 $ | G5: 6,750 $ | H5: 2098 | I5: 2517 | J5: 2250 | K5: 6,294 $ | L5: 6,750 $ | Q5: Lait | R5: 3.50 € | S5: 6.50 €
A6: 1 | B6: Ain | C6: Auvergne-Rhône-Alpes | D6: Yaourt | E6: 3,602 $ | F6: 4,322 $ | G6: 2,730 $ | H6: 2401 | I6: 2881 | J6: 1820 | K6: 3,602 $ | L6: 2,730 $ | Q6: Riz | R6: 3.00 € | S6: 6.00 €
A7: 2 | B7: Aisne | C7: Nord-Pas-de-Calais-Picardie | D7: Riz | E7: 7,086 $ | F7: 8,502 $ | G7: 4,116 $ | H7: 2362 | I7: 2834 | J7: 1372 | K7: 7,086 $ | L7: 4,116 $
A8: 2 | B8: Aisne | C8: Nord-Pas-de-Calais-Picardie | D8: Fromage | E8: 2,416 $ | F8: 2,897 $ | G8: 2,499 $ | H8: 1098 | I8: 1317 | J8: 1136 | K8: 2,525 $ | L8: 2,613 $
A9: 2 | B9: Aisne | C9: Nord-Pas-de-Calais-Picardie | D9: Sucre | E9: 5,013 $ | F9: 6,014 $ | G9: 3,224 $ | H9: 2519 | I9: 3022 | J9: 1620 | K9: 5,038 $ | L9: 3,240 $
A10: 2 | B10: Aisne | C10: Nord-Pas-de-Calais-Picardie | D10: Yaourt | E10: 360 $ | F10: 432 $ | G10: 2,384 $ | H10: 240 | I10: 288 | J10: 1589 | K10: 360 $ | L10: 2,384 $
A11: 3 | B11: Allier | C11: Auvergne-Rhône-Alpes | D11: Sucre | E11: 2,911 $ | F11: 3,492 $ | G11: 2,221 $ | H11: 1463 | I11: 1755 | J11: 1116 | K11: 2,926 $ | L11: 2,232 $
A12: 3 | B12: Allier | C12: Auvergne-Rhône-Alpes | D12: Fromage | E12: 4,138 $ | F12: 4,965 $ | G12: 5,570 $ | H12: 1881 | I12: 2257 | J12: 2532 | K12: 4,326 $ | L12: 5,824 $
A13: 3 | B13: Allier | C13: Auvergne-Rhône-Alpes | D13: Yaourt | E13: 561 $ | F13: 672 $ | G13: 3,267 $ | H13: 374 | I13: 448 | J13: 2178 | K13: 561 $ | L13: 3,267 $
A14: 3 | B14: Allier | C14: Auvergne-Rhône-Alpes | D14: Lait | E14: 8,595 $ | F14: 10,314 $ | G14: 4,230 $ | H14: 2865 | I14: 3438 | J14: 1410 | K14: 10,028 $ | L14: 4,935 $
A15: 3 | B15: Allier | C15: Auvergne-Rhône-Alpes | D15: Riz | E15: 8,217 $ | F15: 9,858 $ | G15: 6,072 $ | H15: 2739 | I15: 3286 | J15: 2024 | K15: 8,217 $ | L15: 6,072 $
A16: 4 | B16: Alpes-de-Haute-Provence | C16: Provence-Alpes-Côte d'Azur | D16: Riz | E16: 7,941 $ | F16: 9,528 $ | G16: 4,590 $ | H16: 2647 | I16: 3176 | J16: 1530 | K16: 7,941 $ | L16: 4,590 $
A17: 4 | B17: Alpes-de-Haute-Provence | C17: Provence-Alpes-Côte d'Azur | D17: Lait | E17: 6,306 $ | F17: 7,566 $ | G17: 3,003 $ | H17: 2102 | I17: 2522 | J17: 1001 | K17: 7,357 $ | L17: 3,504 $
A18: 4 | B18: Alpes-de-Haute-Provence | C18: Provence-Alpes-Côte d'Azur | D18: Sucre | E18: 1,636 $ | F18: 1,962 $ | G18: 1,891 $ | H18: 822 | I18: 986 | J18: 950 | K18: 1,644 $ | L18: 1,900 $
A19: 4 | B19: Alpes-de-Haute-Provence | C19: Provence-Alpes-Côte d'Azur | D19: Fromage | E19: 5,504 $ | F19: 6,604 $ | G19: 4,189 $ | H19: 2502 | I19: 3002 | J19: 1904 | K19: 5,755 $ | L19: 4,379 $
A20: 6 | B20: Alpes-Maritimes | C20: Provence-Alpes-Côte d'Azur | D20: Fromage | E20: 5,091 $ | F20: 6,107 $ | G20: 2,182 $ | H20: 2314 | I20: 2776 | J20: 992 | K20: 5,322 $ | L20: 2,282 $
A21: 6 | B21: Alpes-Maritimes | C21: Provence-Alpes-Côte d'Azur | D21: Sucre | E21: 5,771 $ | F21: 6,925 $ | G21: 2,424 $ | H21: 2900 | I21: 3480 | J21: 1218 | K21: 5,800 $ | L21: 2,436 $
A22: 6 | B22: Alpes-Maritimes | C22: Provence-Alpes-Côte d'Azur | D22: Riz | E22: 4,755 $ | F22: 5,706 $ | G22: 5,484 $ | H22: 1585 | I22: 1902 | J22: 1828 | K22: 4,755 $ | L22: 5,484 $
A23: 6 | B23: Alpes-Maritimes | C23: Provence-Alpes-Côte d'Azur | D23: Yaourt | E23: 3,687 $ | F23: 4,424 $ | G23: 3,756 $ | H23: 2458 | I23: 2949 | J23: 2504 | K23: 3,687 $ | L23: 3,756 $
A24: 7 | B24: Ardèche | C24: Auvergne-Rhône-Alpes | D24: Yaourt | E24: 1,217 $ | F24: 1,460 $ | G24: 2,409 $ | H24: 811 | I24: 973 | J24: 1606 | K24: 1,217 $ | L24: 2,409 $
A25: 7 | B25: Ardèche | C25: Auvergne-Rhône-Alpes | D25: Fromage | E25: 1,742 $ | F25: 2,090 $ | G25: 5,441 $ | H25: 792 | I25: 950 | J25: 2473 | K25: 1,822 $ | L25: 5,688 $
A26: 7 | B26: Ardèche | C26: Auvergne-Rhône-Alpes | D26: Lait | E26: 900 $ | F26: 1,080 $ | G26: 6,264 $ | H26: 300 | I26: 360 | J26: 2088 | K26: 1,050 $ | L26: 7,308 $
A27: 7 | B27: Ardèche | C27: Auvergne-Rhône-Alpes | D27: Riz | E27: 5,262 $ | F27: 6,312 $ | G27: 7,077 $ | H27: 1754 | I27: 2104 | J27: 2359 | K27: 5,262 $ | L27: 7,077 $
A28: 7 | B28: Ardèche | C28: Auvergne-Rhône-Alpes | D28: Sucre | E28: 6,346 $ | F28: 7,614 $ | G28: 1,791 $ | H28: 3189 | I28: 3826 | J28: 900 | K28: 6,378 $ | L28: 1,800 $
A29: 8 | B29: Ardennes | C29: Alsace-Champagne-Ardenne-Lorraine | D29: Riz | E29: 9,975 $ | F29: 11,970 $ | G29: 3,048 $ | H29: 3325 | I29: 3990 | J29: 1016 | K29: 9,975 $ | L29: 3,048 $
A30: 8 | B30: Ardennes | C30: Alsace-Champagne-Ardenne-Lorraine | D30: Fromage | E30: 3,920 $ | F30: 4,704 $ | G30: 3,269 $ | H30: 1782 | I30: 2138 | J30: 1486 | K30: 4,099 $ | L30: 3,418 $
A31: 8 | B31: Ardennes | C31: Alsace-Champagne-Ardenne-Lorraine | D31: Yaourt | E31: 3,929 $ | F31: 4,713 $ | G31: 1,781 $ | H31: 2619 | I31: 3142 | J31: 1187 | K31: 3,929 $ | L31: 1,781 $
A32: 8 | B32: Ardennes | C32: Alsace-Champagne-Ardenne-Lorraine | D32: Lait | E32: 6,435 $ | F32: 7,722 $ | G32: 4,836 $ | H32: 2145 | I32: 2574 | J32: 1612 | K32: 7,508 $ | L32: 5,642 $
A33: 9 | B33: Ariège | C33: Languedoc-Roussillon-Midi-Pyrénées | D33: Riz | E33: 6,081 $ | F33: 7,296 $ | G33: 4,518 $ | H33: 2027 | I33: 2432 | J33: 1506 | K33: 6,081 $ | L33: 4,518 $
A34: 9 | B34: Ariège | C34: Languedoc-Roussillon-Midi-Pyrénées | D34: Lait | E34: 7,461 $ | F34: 8,952 $ | G34: 3,294 $ | H34: 2487 | I34: 2984 | J34: 1098 | K34: 8,705 $ | L34: 3,843 $
A35: 9 | B35: Ariège | C35: Languedoc-Roussillon-Midi-Pyrénées | D35: Sucre | E35: 466 $ | F35: 557 $ | G35: 2,495 $ | H35: 234 | I35: 280 | J35: 1254 | K35: 468 $ | L35: 2,508 $
A36: 9 | B36: Ariège | C36: Languedoc-Roussillon-Midi-Pyrénées | D36: Yaourt | E36: 1,130 $ | F36: 1,355 $ | G36: 3,947 $ | H36: 753 | I36: 903 | J36: 2631 | K36: 1,130 $ | L36: 3,947 $
A37: 9 | B37: Ariège | C37: Languedoc-Roussillon-Midi-Pyrénées | D37: Fromage | E37: 2,391 $ | F37: 2,869 $ | G37: 4,915 $ | H37: 1087 | I37: 1304 | J37: 2234 | K37: 2,500 $ | L37: 5,138 $
A38: 10 | B38: Aube | C38: Alsace-Champagne-Ardenne-Lorraine | D38: Lait | E38: 11,343 $ | F38: 13,611 $ | G38: 3,255 $ | H38: 3781 | I38: 4537 | J38: 1085 | K38: 13,234 $ | L38: 3,798 $
A39: 10 | B39: Aube | C39: Alsace-Champagne-Ardenne-Lorraine | D39: Yaourt | E39: 4,311 $ | F39: 5,172 $ | G39: 2,417 $ | H39: 2874 | I39: 3448 | J39: 1611 | K39: 4,311 $ | L39: 2,417 $
A40: 10 | B40: Aube | C40: Alsace-Champagne-Ardenne-Lorraine | D40: Riz | E40: 9,327 $ | F40: 11,190 $ | G40: 7,704 $ | H40: 3109 | I40: 3730 | J40: 2568 | K40: 9,327 $ | L40: 7,704 $
A41: 10 | B41: Aube | C41: Alsace-Champagne-Ardenne-Lorraine | D41: Fromage | E41: 2,211 $ | F41: 2,653 $ | G41: 3,326 $ | H41: 1005 | I41: 1206 | J41: 1512 | K41: 2,312 $ | L41: 3,478 $
A42: 10 | B42: Aube | C42: Alsace-Champagne-Ardenne-Lorraine | D42: Sucre | E42: 1,755 $ | F42: 2,105 $ | G42: 4,671 $ | H42: 882 | I42: 1058 | J42: 2347 | K42: 1,764 $ | L42: 4,694 $
A43: 11 | B43: Aude | C43: Languedoc-Roussillon-Midi-Pyrénées | D43: Fromage | E43: 6,472 $ | F43: 7,766 $ | G43: 2,086 $ | H43: 2942 | I43: 3530 | J43: 948 | K43: 6,767 $ | L43: 2,180 $
A44: 11 | B44: Aude | C44: Languedoc-Roussillon-Midi-Pyrénées | D44: Sucre | E44: 4,927 $ | F44: 5,912 $ | G44: 2,653 $ | H44: 2476 | I44: 2971 | J44: 1333 | K44: 4,952 $ | L44: 2,666 $
A45: 11 | B45: Aude | C45: Languedoc-Roussillon-Midi-Pyrénées | D45: Yaourt | E45: 1,439 $ | F45: 1,725 $ | G45: 3,984 $ | H45: 959 | I45: 1150 | J45: 2656 | K45: 1,439 $ | L45: 3,984 $
A46: 11 | B46: Aude | C46: Languedoc-Roussillon-Midi-Pyrénées | D46: Riz | E46: 4,812 $ | F46: 5,772 $ | G46: 7,389 $ | H46: 1604 | I46: 1924 | J46: 2463 | K46: 4,812 $ | L46: 7,389 $
A47: 12 | B47: Aveyron | C47: Languedoc-Roussillon-Midi-Pyrénées | D47: Sucre | E47: 3,652 $ | F47: 4,382 $ | G47: 4,633 $ | H47: 1835 | I47: 2202 | J47: 2328 | K47: 3,670 $ | L47: 4,656 $
A48: 12 | B48: Aveyron | C48: Languedoc-Roussillon-Midi-Pyrénées | D48: Fromage | E48: 5,311 $ | F48: 6,371 $ | G48: 4,013 $ | H48: 2414 | I48: 2896 | J48: 1824 | K48: 5,552 $ | L48: 4,195 $
A49: 67 | B49: Bas-Rhin | C49: Alsace-Champagne-Ardenne-Lorraine | D49: Riz | E49: 6,132 $ | F49: 7,356 $ | G49: 7,110 $ | H49: 2044 | I49: 2452 | J49: 2370 | K49: 6,132 $ | L49: 7,110 $
A50: 67 | B50: Bas-Rhin | C50: Alsace-Champagne-Ardenne-Lorraine | D50: Lait | E50: 5,241 $ | F50: 6,288 $ | G50: 5,346 $ | H50: 1747 | I50: 2096 | J50: 1782 | K50: 6,115 $ | L50: 6,237 $
A51: 67 | B51: Bas-Rhin | C51: Alsace-Champagne-Ardenne-Lorraine | D51: Fromage | E51: 2,946 $ | F51: 3,533 $ | G51: 2,380 $ | H51: 1339 | I51: 1606 | J51: 1082 | K51: 3,080 $ | L51: 2,489 $
A52: 67 | B52: Bas-Rhin | C52: Alsace-Champagne-Ardenne-Lorraine | D52: Yaourt | E52: 125 $ | F52: 149 $ | G52: 2,240 $ | H52: 83 | I52: 99 | J52: 1493 | K52: 125 $ | L52: 2,240 $
A53: 67 | B53: Bas-Rhin | C53: Alsace-Champagne-Ardenne-Lorraine | D53: Sucre | E53: 263 $ | F53: 314 $ | G53: 3,260 $ | H53: 132 | I53: 158 | J53: 1638 | K53: 264 $ | L53: 3,276 $
A54: 13 | B54: Bouches-du-Rhône | C54: Provence-Alpes-Côte d'Azur | D54: Riz | E54: 8,139 $ | F54: 9,765 $ | G54: 4,614 $ | H54: 2713 | I54: 3255 | J54: 1538 | K54: 8,139 $ | L54: 4,614 $
A55: 13 | B55: Bouches-du-Rhône | C55: Provence-Alpes-Côte d'Azur | D55: Yaourt | E55: 2,924 $ | F55: 3,507 $ | G55: 3,408 $ | H55: 1949 | I55: 2338 | J55: 2272 | K55: 2,924 $ | L55: 3,408 $
A56: 13 | B56: Bouches-du-Rhône | C56: Provence-Alpes-Côte d'Azur | D56: Fromage | E56: 6,085 $ | F56: 7,302 $ | G56: 2,805 $ | H56: 2766 | I56: 3319 | J56: 1275 | K56: 6,362 $ | L56: 2,933 $
A57: 13 | B57: Bouches-du-Rhône | C57: Provence-Alpes-Côte d'Azur | D57: Lait | E57: 7,626 $ | F57: 9,150 $ | G57: 6,090 $ | H57: 2542 | I57: 3050 | J57: 2030 | K57: 8,897 $ | L57: 7,105 $
A58: 13 | B58: Bouches-du-Rhône | C58: Provence-Alpes-Côte d'Azur | D58: Sucre | E58: 6,269 $ | F58: 7,522 $ | G58: 2,342 $ | H58: 3150 | I58: 3780 | J58: 1177 | K58: 6,300 $ | L58: 2,354 $
A59: 14 | B59: Calvados | C59: Normandie | D59: Lait | E59: 4,671 $ | F59: 5,604 $ | G59: 3,213 $ | H59: 1557 | I59: 1868 | J59: 1071 | K59: 5,450 $ | L59: 3,749 $
A60: 14 | B60: Calvados | C60: Normandie | D60: Fromage | E60: 3,740 $ | F60: 4,488 $ | G60: 2,354 $ | H60: 1700 | I60: 2040 | J60: 1070 | K60: 3,910 $ | L60: 2,461 $
A61: 14 | B61: Calvados | C61: Normandie | D61: Riz | E61: 4,101 $ | F61: 4,920 $ | G61: 7,788 $ | H61: 1367 | I61: 1640 | J61: 2596 | K61: 4,101 $ | L61: 7,788 $
A62: 14 | B62: Calvados | C62: Normandie | D62: Yaourt | E62: 708 $ | F62: 849 $ | G62: 3,063 $ | H62: 472 | I62: 566 | J62: 2042 | K62: 708 $ | L62: 3,063 $
A63: 15 | B63: Cantal | C63: Auvergne-Rhône-Alpes | D63: Riz | E63: 5,970 $ | F63: 7,164 $ | G63: 2,739 $ | H63: 1990 | I63: 2388 | J63: 913 | K63: 5,970 $ | L63: 2,739 $
A64: 15 | B64: Cantal | C64: Auvergne-Rhône-Alpes | D64: Fromage | E64: 3,309 $ | F64: 3,969 $ | G64: 4,409 $ | H64: 1504 | I64: 1804 | J64: 2004 | K64: 3,459 $ | L64: 4,609 $
A65: 15 | B65: Cantal | C65: Auvergne-Rhône-Alpes | D65: Yaourt | E65: 4,020 $ | F65: 4,824 $ | G65: 1,248 $ | H65: 2680 | I65: 3216 | J65: 832 | K65: 4,020 $ | L65: 1,248 $
A66: 15 | B66: Cantal | C66: Auvergne-Rhône-Alpes | D66: Lait | E66: 4,449 $ | F66: 5,337 $ | G66: 4,224 $ | H66: 1483 | I66: 1779 | J66: 1408 | K66: 5,191 $ | L66: 4,928 $
A67: 16 | B67: Charente | C67: Aquitaine-Limousin-Poitou-Charentes | D67: Sucre | E67: =H67*VLOOKUP($D67,$Q$2:$S$6,3,0)-K67 -> 285 $ | F67: =I67*VLOOKUP($D67,$Q$2:$S$6,3,0)-I67*VLOOKUP($D67,$Q$2:$S$6,2,0) -> 340 $ | G67: =J67*VLOOKUP($D67,$Q$2:$S$6,3,0)-L67 -> 3,668 $ | H67: 143 | I67: =INT(H67*1.2) -> 171 | J67: 1843 | K67: =H67*VLOOKUP($D67,$Q$2:$S$6,2,0) -> 286 $ | L67: =J67*VLOOKUP($D67,$Q$2:$S$6,2,0) -> 3,686 $
A68: 16 | B68: Charente | C68: Aquitaine-Limousin-Poitou-Charentes | D68: Fromage | E68: 517 $ | F68: 620 $ | G68: 2,416 $ | H68: 235 | I68: 282 | J68: 1098 | K68: 541 $ | L68: 2,525 $
A69: 16 | B69: Charente | C69: Aquitaine-Limousin-Poitou-Charentes | D69: Yaourt | E69: 557 $ | F69: 668 $ | G69: 2,813 $ | H69: 371 | I69: 445 | J69: 1875 | K69: 557 $ | L69: 2,813 $
A70: 16 | B70: Charente | C70: Aquitaine-Limousin-Poitou-Charentes | D70: Riz | E70: 7,023 $ | F70: 8,427 $ | G70: 7,179 $ | H70: 2341 | I70: 2809 | J70: 2393 | K70: 7,023 $ | L70: 7,179 $
A71: 16 | B71: Charente | C71: Aquitaine-Limousin-Poitou-Charentes | D71: Lait | E71: 7,557 $ | F71: 9,066 $ | G71: 2,841 $ | H71: 2519 | I71: 3022 | J71: 947 | K71: 8,817 $ | L71: 3,315 $
A72: 17 | B72: Charente-Maritime | C72: Aquitaine-Limousin-Poitou-Charentes | D72: Yaourt | E72: 941 $ | F72: 1,128 $ | G72: 3,600 $ | H72: 627 | I72: 752 | J72: 2400 | K72: 941 $ | L72: 3,600 $
A73: 17 | B73: Charente-Maritime | C73: Aquitaine-Limousin-Poitou-Charentes | D73: Riz | E73: 6,153 $ | F73: 7,383 $ | G73: 3,078 $ | H73: 2051 | I73: 2461 | J73: 1026 | K73: 6,153 $ | L73: 3,078 $
A74: 17 | B74: Charente-Maritime | C74: Aquitaine-Limousin-Poitou-Charentes | D74: Fromage | E74: 6,769 $ | F74: 8,122 $ | G74: 3,773 $ | H74: 3077 | I74: 3692 | J74: 1715 | K74: 7,077 $ | L74: 3,945 $
A75: 17 | B75: Charente-Maritime | C75: Aquitaine-Limousin-Poitou-Charentes | D75: Lait | E75: 11,409 $ | F75: 13,689 $ | G75: 3,192 $ | H75: 3803 | I75: 4563 | J75: 1064 | K75: 13,311 $ | L75: 3,724 $
A76: 17 | B76: Charente-Maritime | C76: Aquitaine-Limousin-Poitou-Charentes | D76: Sucre | E76: 4,671 $ | F76: 5,604 $ | G76: 1,976 $ | H76: 2347 | I76: 2816 | J76: 993 | K76: 4,694 $ | L76: 1,986 $
A77: 18 | B77: Cher | C77: Centre-Val de Loire | D77: Lait | E77: 6,648 $ | F77: 7,977 $ | G77: 3,543 $ | H77: 2216 | I77: 2659 | J77: 1181 | K77: 7,756 $ | L77: 4,134 $
A78: 18 | B78: Cher | C78: Centre-Val de Loire | D78: Fromage | E78: 8,331 $ | F78: 9,997 $ | G78: 3,263 $ | H78: 3787 | I78: 4544 | J78: 1483 | K78: 8,710 $ | L78: 3,411 $
A79: 18 | B79: Cher | C79: Centre-Val de Loire | D79: Sucre | E79: 4,416 $ | F79: 5,297 $ | G79: 5,188 $ | H79: 2219 | I79: 2662 | J79: 2607 | K79: 4,438 $ | L79: 5,214 $
A80: 18 | B80: Cher | C80: Centre-Val de Loire | D80: Riz | E80: 633 $ | F80: 759 $ | G80: 6,555 $ | H80: 211 | I80: 253 | J80: 2185 | K80: 633 $ | L80: 6,555 $
A81: 19 | B81: Corrèze | C81: Aquitaine-Limousin-Poitou-Charentes | D81: Sucre | E81: 2,211 $ | F81: 2,653 $ | G81: 5,078 $ | H81: 1111 | I81: 1333 | J81: 2552 | K81: 2,222 $ | L81: 5,104 $
A82: 19 | B82: Corrèze | C82: Aquitaine-Limousin-Poitou-Charentes | D82: Lait | E82: 8,031 $ | F82: 9,636 $ | G82: 5,856 $ | H82: 2677 | I82: 3212 | J82: 1952 | K82: 9,370 $ | L82: 6,832 $
A83: 19 | B83: Corrèze | C83: Aquitaine-Limousin-Poitou-Charentes | D83: Fromage | E83: 7,775 $ | F83: 9,328 $ | G83: 4,930 $ | H83: 3534 | I83: 4240 | J83: 2241 | K83: 8,128 $ | L83: 5,154 $
A84: 19 | B84: Corrèze | C84: Aquitaine-Limousin-Poitou-Charentes | D84: Yaourt | E84: 1,614 $ | F84: 1,937 $ | G84: 1,485 $ | H84: 1076 | I84: 1291 | J84: 990 | K84: 1,614 $ | L84: 1,485 $
A85: 2B | B85: Corse-du-Sud | C85: Corse | D85: Fromage | E85: 3,619 $ | F85: 4,343 $ | G85: 2,644 $ | H85: 1645 | I85: 1974 | J85: 1202 | K85: 3,784 $ | L85: 2,765 $
A86: 2B | B86: Corse-du-Sud | C86: Corse | D86: Riz | E86: 924 $ | F86: 1,107 $ | G86: 3,213 $ | H86: 308 | I86: 369 | J86: 1071 | K86: 924 $ | L86: 3,213 $
A87: 2B | B87: Corse-du-Sud | C87: Corse | D87: Sucre | E87: 2,639 $ | F87: 3,166 $ | G87: 1,604 $ | H87: 1326 | I87: 1591 | J87: 806 | K87: 2,652 $ | L87: 1,612 $
A88: 2B | B88: Corse-du-Sud | C88: Corse | D88: Yaourt | E88: 2,573 $ | F88: 3,087 $ | G88: 1,262 $ | H88: 1715 | I88: 2058 | J88: 841 | K88: 2,573 $ | L88: 1,262 $
A89: 21 | B89: Côte-d'Or | C89: Bourgogne-Franche-Comté | D89: Riz | E89: 8,244 $ | F89: 9,891 $ | G89: 4,188 $ | H89: 2748 | I89: 3297 | J89: 1396 | K89: 8,244 $ | L89: 4,188 $
A90: 21 | B90: Côte-d'Or | C90: Bourgogne-Franche-Comté | D90: Lait | E90: 6,696 $ | F90: 8,034 $ | G90: 4,113 $ | H90: 2232 | I90: 2678 | J90: 1371 | K90: 7,812 $ | L90: 4,799 $
A91: 21 | B91: Côte-d'Or | C91: Bourgogne-Franche-Comté | D91: Yaourt | E91: 2,052 $ | F91: 2,462 $ | G91: 3,249 $ | H91: 1368 | I91: 1641 | J91: 2166 | K91: 2,052 $ | L91: 3,249 $
A92: 21 | B92: Côte-d'Or | C92: Bourgogne-Franche-Comté | D92: Fromage | E92: 1,362 $ | F92: 1,632 $ | G92: 2,435 $ | H92: 619 | I92: 742 | J92: 1107 | K92: 1,424 $ | L92: 2,546 $
A93: 21 | B93: Côte-d'Or | C93: Bourgogne-Franche-Comté | D93: Sucre | E93: 6,772 $ | F93: 8,125 $ | G93: 2,623 $ | H93: 3403 | I93: 4083 | J93: 1318 | K93: 6,806 $ | L93: 2,636 $
A94: 22 | B94: Côtes-d'Armor | C94: Bretagne | D94: Sucre | E94: 3,461 $ | F94: 4,151 $ | G94: 3,230 $ | H94: 1739 | I94: 2086 | J94: 1623 | K94: 3,478 $ | L94: 3,246 $
A95: 22 | B95: Côtes-d'Armor | C95: Bretagne | D95: Yaourt | E95: 1,257 $ | F95: 1,508 $ | G95: 1,649 $ | H95: 838 | I95: 1005 | J95: 1099 | K95: 1,257 $ | L95: 1,649 $
A96: 22 | B96: Côtes-d'Armor | C96: Bretagne | D96: Fromage | E96: 3,342 $ | F96: 4,008 $ | G96: 2,988 $ | H96: 1519 | I96: 1822 | J96: 1358 | K96: 3,494 $ | L96: 3,123 $
A97: 23 | B97: Creuse | C97: Aquitaine-Limousin-Poitou-Charentes | D97: Sucre | E97: 3,881 $ | F97: 4,657 $ | G97: 4,042 $ | H97: 1950 | I97: 2340 | J97: 2031 | K97: 3,900 $ | L97: 4,062 $
A98: 23 | B98: Creuse | C98: Aquitaine-Limousin-Poitou-Charentes | D98: Fromage | E98: 607 $ | F98: 728 $ | G98: 2,156 $ | H98: 276 | I98: 331 | J98: 980 | K98: 635 $ | L98: 2,254 $
A99: 23 | B99: Creuse | C99: Aquitaine-Limousin-Poitou-Charentes | D99: Lait | E99: 5,838 $ | F99: 7,005 $ | G99: 5,253 $ | H99: 1946 | I99: 2335 | J99: 1751 | K99: 6,811 $ | L99: 6,129 $
A100: 23 | B100: Creuse | C100: Aquitaine-Limousin-Poitou-Charentes | D100: Riz | E100: 5,529 $ | F100: 6,633 $ | G100: 3,996 $ | H100: 1843 | I100: 2211 | J100: 1332 | K100: 5,529 $ | L100: 3,996 $
A101: 23 | B101: Creuse | C101: Aquitaine-Limousin-Poitou-Charentes | D101: Yaourt | E101: 2,973 $ | F101: 3,567 $ | G101: 2,361 $ | H101: 1982 | I101: 2378 | J101: 1574 | K101: 2,973 $ | L101: 2,361 $
A102: 79 | B102: Deux-Sèvres | C102: Aquitaine-Limousin-Poitou-Charentes | D102: Lait | E102: 6,357 $ | F102: 7,626 $ | G102: 5,688 $ | H102: 2119 | I102: 2542 | J102: 1896 | K102: 7,417 $ | L102: 6,636 $
A103: 79 | B103: Deux-Sèvres | C103: Aquitaine-Limousin-Poitou-Charentes | D103: Fromage | E103: 1,753 $ | F103: 2,103 $ | G103: 3,958 $ | H103: 797 | I103: 956 | J103: 1799 | K103: 1,833 $ | L103: 4,138 $
A104: 79 | B104: Deux-Sèvres | C104: Aquitaine-Limousin-Poitou-Charentes | D104: Yaourt | E104: 3,075 $ | F104: 3,690 $ | G104: 3,609 $ | H104: 2050 | I104: 2460 | J104: 2406 | K104: 3,075 $ | L104: 3,609 $
A105: 79 | B105: Deux-Sèvres | C105: Aquitaine-Limousin-Poitou-Charentes | D105: Riz | E105: 6,936 $ | F105: 8,322 $ | G105: 3,540 $ | H105: 2312 | I105: 2774 | J105: 1180 | K105: 6,936 $ | L105: 3,540 $
A106: 79 | B106: Deux-Sèvres | C106: Aquitaine-Limousin-Poitou-Charentes | D106: Sucre | E106: 5,910 $ | F106: 7,092 $ | G106: 2,798 $ | H106: 2970 | I106: 3564 | J106: 1406 | K106: 5,940 $ | L106: 2,812 $
A107: 24 | B107: Dordogne | C107: Aquitaine-Limousin-Poitou-Charentes | D107: Sucre | E107: 2,864 $ | F107: 3,435 $ | G107: 4,352 $ | H107: 1439 | I107: 1726 | J107: 2187 | K107: 2,878 $ | L107: 4,374 $
A108: 24 | B108: Dordogne | C108: Aquitaine-Limousin-Poitou-Charentes | D108: Riz | E108: 3,114 $ | F108: 3,735 $ | G108: 6,852 $ | H108: 1038 | I108: 1245 | J108: 2284 | K108: 3,114 $ | L108: 6,852 $
A109: 24 | B109: Dordogne | C109: Aquitaine-Limousin-Poitou-Charentes | D109: Lait | E109: 1,497 $ | F109: 1,794 $ | G109: 3,012 $ | H109: 499 | I109: 598 | J109: 1004 | K109: 1,747 $ | L109: 3,514 $
A110: 24 | B110: Dordogne | C110: Aquitaine-Limousin-Poitou-Charentes | D110: Yaourt | E110: 1,418 $ | F110: 1,701 $ | G110: 2,823 $ | H110: 945 | I110: 1134 | J110: 1882 | K110: 1,418 $ | L110: 2,823 $
A111: 25 | B111: Doubs | C111: Bourgogne-Franche-Comté | D111: Lait | E111: 3,114 $ | F111: 3,735 $ | G111: 7,287 $ | H111: 1038 | I111: 1245 | J111: 2429 | K111: 3,633 $ | L111: 8,502 $
A112: 25 | B112: Doubs | C112: Bourgogne-Franche-Comté | D112: Sucre | E112: 3,027 $ | F112: 3,632 $ | G112: 2,653 $ | H112: 1521 | I112: 1825 | J112: 1333 | K112: 3,042 $ | L112: 2,666 $
A113: 25 | B113: Doubs | C113: Bourgogne-Franche-Comté | D113: Riz | E113: 3,927 $ | F113: 4,710 $ | G113: 2,730 $ | H113: 1309 | I113: 1570 | J113: 910 | K113: 3,927 $ | L113: 2,730 $
A114: 26 | B114: Drôme | C114: Auvergne-Rhône-Alpes | D114: Yaourt | E114: 1,229 $ | F114: 1,473 $ | G114: 1,338 $ | H114: 819 | I114: 982 | J114: 892 | K114: 1,229 $ | L114: 1,338 $
A115: 26 | B115: Drôme | C115: Auvergne-Rhône-Alpes | D115: Fromage | E115: 3,177 $ | F115: 3,810 $ | G115: 3,692 $ | H115: 1444 | I115: 1732 | J115: 1678 | K115: 3,321 $ | L115: 3,859 $
A116: 26 | B116: Drôme | C116: Auvergne-Rhône-Alpes | D116: Sucre | E116: 384 $ | F116: 460 $ | G116: 5,124 $ | H116: 193 | I116: 231 | J116: 2575 | K116: 386 $ | L116: 5,150 $
A117: 26 | B117: Drôme | C117: Auvergne-Rhône-Alpes | D117: Lait | E117: 3,837 $ | F117: 4,602 $ | G117: 7,413 $ | H117: 1279 | I117: 1534 | J117: 2471 | K117: 4,477 $ | L117: 8,649 $
A118: 26 | B118: Drôme | C118: Auvergne-Rhône-Alpes | D118: Riz | E118: 402 $ | F118: 480 $ | G118: 5,478 $ | H118: 134 | I118: 160 | J118: 1826 | K118: 402 $ | L118: 5,478 $
A119: 91 | B119: Essonne | C119: Île-de-France | D119: Lait | E119: 5,319 $ | F119: 6,381 $ | G119: 5,055 $ | H119: 1773 | I119: 2127 | J119: 1685 | K119: 6,206 $ | L119: 5,898 $
A120: 91 | B120: Essonne | C120: Île-de-France | D120: Yaourt | E120: 2,889 $ | F120: 3,467 $ | G120: 2,397 $ | H120: 1926 | I120: 2311 | J120: 1598 | K120: 2,889 $ | L120: 2,397 $
A121: 91 | B121: Essonne | C121: Île-de-France | D121: Riz | E121: 7,209 $ | F121: 8,649 $ | G121: 3,096 $ | H121: 2403 | I121: 2883 | J121: 1032 | K121: 7,209 $ | L121: 3,096 $
A122: 27 | B122: Eure | C122: Normandie | D122: Fromage | E122: 3,773 $ | F122: 4,326 $ | G122: 2,341 $ | H122: 1715 | I122: 2058 | J122: 969 | K122: 3,945 $ | L122: 2,229 $
A123: 27 | B123: Eure | C123: Normandie | D123: Yaourt | E123: 3,036 $ | F123: 3,642 $ | G123: 2,997 $ | H123: 2024 | I123: 2428 | J123: 1998 | K123: 3,036 $ | L123: 2,997 $
A124: 27 | B124: Eure | C124: Normandie | D124: Riz | E124: 7,932 $ | F124: 9,516 $ | G124: 3,651 $ | H124: 2644 | I124: 3172 | J124: 1217 | K124: 7,932 $ | L124: 3,651 $
A125: 27 | B125: Eure | C125: Normandie | D125: Sucre | E125: 4,941 $ | F125: 5,928 $ | G125: 4,081 $ | H125: 2483 | I125: 2979 | J125: 2051 | K125: 4,966 $ | L125: 4,102 $
A126: 28 | B126: Eure-et-Loir | C126: Centre-Val de Loire | D126: Riz | E126: 5,061 $ | F126: 6,072 $ | G126: 4,341 $ | H126: 1687 | I126: 2024 | J126: 1447 | K126: 5,061 $ | L126: 4,341 $
A127: 28 | B127: Eure-et-Loir | C127: Centre-Val de Loire | D127: Sucre | E127: 2,603 $ | F127: 3,122 $ | G127: 3,457 $ | H127: 1308 | I127: 1569 | J127: 1737 | K127: 2,616 $ | L127: 3,474 $
A128: 28 | B128: Eure-et-Loir | C128: Centre-Val de Loire | D128: Fromage | E128: 7,185 $ | F128: 8,622 $ | G128: 5,408 $ | H128: 3266 | I128: 3919 | J128: 2458 | K128: 7,512 $ | L128: 5,653 $
A129: 28 | B129: Eure-et-Loir | C129: Centre-Val de Loire | D129: Lait | E129: 309 $ | F129: 369 $ | G129: 3,462 $ | H129: 103 | I129: 123 | J129: 1154 | K129: 361 $ | L129: 4,039 $
A130: 28 | B130: Eure-et-Loir | C130: Centre-Val de Loire | D130: Yaourt | E130: 5,616 $ | F130: 6,738 $ | G130: 3,531 $ | H130: 3744 | I130: 4492 | J130: 2354 | K130: 5,616 $ | L130: 3,531 $
A131: 29 | B131: Finistère | C131: Bretagne | D131: Yaourt | E131: =H131*VLOOKUP($D131,$Q$2:$S$6,3,0)-K131 -> 411 $ | F131: =I131*VLOOKUP($D131,$Q$2:$S$6,3,0)-I131*VLOOKUP($D131,$Q$2:$S$6,2,0) -> 492 $ | G131: =J131*VLOOKUP($D131,$Q$2:$S$6,3,0)-L131 -> 1,653 $ | H131: 274 | I131: =INT(H131*1.2) -> 328 | J131: 1102 | K131: =H131*VLOOKUP($D131,$Q$2:$S$6,2,0) -> 411 $ | L131: =J131*VLOOKUP($D131,$Q$2:$S$6,2,0) -> 1,653 $
A132: 29 | B132: Finistère | C132: Bretagne | D132: Riz | E132: 1,767 $ | F132: 2,118 $ | G132: 6,369 $ | H132: 589 | I132: 706 | J132: 2123 | K132: 1,767 $ | L132: 6,369 $
A133: 29 | B133: Finistère | C133: Bretagne | D133: Fromage | E133: 5,843 $ | F133: 7,011 $ | G133: 5,916 $ | H133: 2656 | I133: 3187 | J133: 2689 | K133: 6,109 $ | L133: 6,185 $
A134: 29 | B134: Finistère | C134: Bretagne | D134: Sucre | E134: 34 $ | F134: 40 $ | G134: 4,657 $ | H134: 17 | I134: 20 | J134: 2340 | K134: 34 $ | L134: 4,680 $
A135: 30 | B135: Gard | C135: Languedoc-Roussillon-Midi-Pyrénées | D135: Riz | E135: 1,683 $ | F135: 2,019 $ | G135: 4,593 $ | H135: 561 | I135: 673 | J135: 1531 | K135: 1,683 $ | L135: 4,593 $
A136: 30 | B136: Gard | C136: Languedoc-Roussillon-Midi-Pyrénées | D136: Fromage | E136: 3,406 $ | F136: 4,085 $ | G136: 4,233 $ | H136: 1548 | I136: 1857 | J136: 1924 | K136: 3,560 $ | L136: 4,425 $
A137: 30 | B137: Gard | C137: Languedoc-Roussillon-Midi-Pyrénées | D137: Lait | E137: 3,126 $ | F137: 3,750 $ | G137: 5,793 $ | H137: 1042 | I137: 1250 | J137: 1931 | K137: 3,647 $ | L137: 6,759 $
A138: 30 | B138: Gard | C138: Languedoc-Roussillon-Midi-Pyrénées | D138: Sucre | E138: 7,029 $ | F138: 8,434 $ | G138: 3,970 $ | H138: 3532 | I138: 4238 | J138: 1995 | K138: 7,064 $ | L138: 3,990 $
A139: 30 | B139: Gard | C139: Languedoc-Roussillon-Midi-Pyrénées | D139: Yaourt | E139: 1,278 $ | F139: 1,533 $ | G139: 3,842 $ | H139: 852 | I139: 1022 | J139: 2561 | K139: 1,278 $ | L139: 3,842 $
A140: 32 | B140: Gers | C140: Languedoc-Roussillon-Midi-Pyrénées | D140: Riz | E140: 5,115 $ | F140: 6,138 $ | G140: 7,236 $ | H140: 1705 | I140: 2046 | J140: 2412 | K140: 5,115 $ | L140: 7,236 $
A141: 32 | B141: Gers | C141: Languedoc-Roussillon-Midi-Pyrénées | D141: Sucre | E141: 3,990 $ | F141: 4,788 $ | G141: 4,402 $ | H141: 2005 | I141: 2406 | J141: 2212 | K141: 4,010 $ | L141: 4,424 $
A142: 32 | B142: Gers | C142: Languedoc-Roussillon-Midi-Pyrénées | D142: Lait | E142: 7,770 $ | F142: 9,324 $ | G142: 5,229 $ | H142: 2590 | I142: 3108 | J142: 1743 | K142: 9,065 $ | L142: 6,101 $
A143: 32 | B143: Gers | C143: Languedoc-Roussillon-Midi-Pyrénées | D143: Fromage | E143: 5,852 $ | F143: 7,022 $ | G143: 3,791 $ | H143: 2660 | I143: 3192 | J143: 1723 | K143: 6,118 $ | L143: 3,963 $
A144: 33 | B144: Gironde | C144: Aquitaine-Limousin-Poitou-Charentes | D144: Sucre | E144: 3,453 $ | F144: 4,143 $ | G144: 4,911 $ | H144: 1735 | I144: 2082 | J144: 2468 | K144: 3,470 $ | L144: 4,936 $
A145: 33 | B145: Gironde | C145: Aquitaine-Limousin-Poitou-Charentes | D145: Yaourt | E145: 3,510 $ | F145: 4,212 $ | G145: 3,890 $ | H145: 2340 | I145: 2808 | J145: 2593 | K145: 3,510 $ | L145: 3,890 $
A146: 33 | B146: Gironde | C146: Aquitaine-Limousin-Poitou-Charentes | D146: Fromage | E146: 4,657 $ | F146: 5,588 $ | G146: 4,068 $ | H146: 2117 | I146: 2540 | J146: 1849 | K146: 4,869 $ | L146: 4,253 $
A147: 33 | B147: Gironde | C147: Aquitaine-Limousin-Poitou-Charentes | D147: Lait | E147: 7,311 $ | F147: 8,772 $ | G147: 2,670 $ | H147: 2437 | I147: 2924 | J147: 890 | K147: 8,530 $ | L147: 3,115 $
A148: 2A | B148: Haute-Corse | C148: Corse | D148: Sucre | E148: 6,545 $ | F148: 7,853 $ | G148: 1,904 $ | H148: 3289 | I148: 3946 | J148: 957 | K148: 6,578 $ | L148: 1,914 $
A149: 2A | B149: Haute-Corse | C149: Corse | D149: Riz | E149: 9,600 $ | F149: 11,520 $ | G149: 3,438 $ | H149: 3200 | I149: 3840 | J149: 1146 | K149: 9,600 $ | L149: 3,438 $
A150: 2A | B150: Haute-Corse | C150: Corse | D150: Fromage | E150: 4,468 $ | F150: 5,361 $ | G150: 5,333 $ | H150: 2031 | I150: 2437 | J150: 2424 | K150: 4,671 $ | L150: 5,575 $
A151: 2A | B151: Haute-Corse | C151: Corse | D151: Lait | E151: 1,995 $ | F151: 2,394 $ | G151: 3,912 $ | H151: 665 | I151: 798 | J151: 1304 | K151: 2,328 $ | L151: 4,564 $
A152: 2A | B152: Haute-Corse | C152: Corse | D152: Yaourt | E152: 2,024 $ | F152: 2,427 $ | G152: 1,454 $ | H152: 1349 | I152: 1618 | J152: 969 | K152: 2,024 $ | L152: 1,454 $
A153: 31 | B153: Haute-Garonne | C153: Languedoc-Roussillon-Midi-Pyrénées | D153: Fromage | E153: 616 $ | F153: 739 $ | G153: 4,389 $ | H153: 280 | I153: 336 | J153: 1995 | K153: 644 $ | L153: 4,589 $
A154: 31 | B154: Haute-Garonne | C154: Languedoc-Roussillon-Midi-Pyrénées | D154: Lait | E154: 4,941 $ | F154: 5,928 $ | G154: 7,503 $ | H154: 1647 | I154: 1976 | J154: 2501 | K154: 5,765 $ | L154: 8,754 $
A155: 31 | B155: Haute-Garonne | C155: Languedoc-Roussillon-Midi-Pyrénées | D155: Yaourt | E155: 699 $ | F155: 839 $ | G155: 1,367 $ | H155: 466 | I155: 559 | J155: 911 | K155: 699 $ | L155: 1,367 $
A156: 31 | B156: Haute-Garonne | C156: Languedoc-Roussillon-Midi-Pyrénées | D156: Riz | E156: 180 $ | F156: 216 $ | G156: 4,095 $ | H156: 60 | I156: 72 | J156: 1365 | K156: 180 $ | L156: 4,095 $
A157: 31 | B157: Haute-Garonne | C157: Languedoc-Roussillon-Midi-Pyrénées | D157: Sucre | E157: 2,989 $ | F157: 3,586 $ | G157: 2,808 $ | H157: 1502 | I157: 1802 | J157: 1411 | K157: 3,004 $ | L157: 2,822 $
A158: 43 | B158: Haute-Loire | C158: Auvergne-Rhône-Alpes | D158: Lait | E158: 5,709 $ | F158: 6,849 $ | G158: 6,867 $ | H158: 1903 | I158: 2283 | J158: 2289 | K158: 6,661 $ | L158: 8,012 $
A159: 43 | B159: Haute-Loire | C159: Auvergne-Rhône-Alpes | D159: Yaourt | E159: 152 $ | F159: 182 $ | G159: 3,092 $ | H159: 101 | I159: 121 | J159: 2061 | K159: 152 $ | L159: 3,092 $
A160: 43 | B160: Haute-Loire | C160: Auvergne-Rhône-Alpes | D160: Sucre | E160: 7,936 $ | F160: 9,522 $ | G160: 2,981 $ | H160: 3988 | I160: 4785 | J160: 1498 | K160: 7,976 $ | L160: 2,996 $
A161: 43 | B161: Haute-Loire | C161: Auvergne-Rhône-Alpes | D161: Fromage | E161: 1,122 $ | F161: 1,346 $ | G161: 3,956 $ | H161: 510 | I161: 612 | J161: 1798 | K161: 1,173 $ | L161: 4,135 $
A162: 43 | B162: Haute-Loire | C162: Auvergne-Rhône-Alpes | D162: Riz | E162: 4,983 $ | F162: 5,979 $ | G162: 7,098 $ | H162: 1661 | I162: 1993 | J162: 2366 | K162: 4,983 $ | L162: 7,098 $
A163: 52 | B163: Haute-Marne | C163: Alsace-Champagne-Ardenne-Lorraine | D163: Fromage | E163: 1,969 $ | F163: 2,363 $ | G163: 4,943 $ | H163: 895 | I163: 1074 | J163: 2247 | K163: 2,059 $ | L163: 5,168 $
A164: 52 | B164: Haute-Marne | C164: Alsace-Champagne-Ardenne-Lorraine | D164: Yaourt | E164: 1,065 $ | F164: 1,278 $ | G164: 4,064 $ | H164: 710 | I164: 852 | J164: 2709 | K164: 1,065 $ | L164: 4,064 $
A165: 52 | B165: Haute-Marne | C165: Alsace-Champagne-Ardenne-Lorraine | D165: Lait | E165: 660 $ | F165: 792 $ | G165: 3,150 $ | H165: 220 | I165: 264 | J165: 1050 | K165: 770 $ | L165: 3,675 $
A166: 52 | B166: Haute-Marne | C166: Alsace-Champagne-Ardenne-Lorraine | D166: Riz | E166: 1,584 $ | F166: 1,899 $ | G166: 7,005 $ | H166: 528 | I166: 633 | J166: 2335 | K166: 1,584 $ | L166: 7,005 $
A167: 52 | B167: Haute-Marne | C167: Alsace-Champagne-Ardenne-Lorraine | D167: Sucre | E167: 1,134 $ | F167: 1,361 $ | G167: 5,001 $ | H167: 570 | I167: 684 | J167: 2513 | K167: 1,140 $ | L167: 5,026 $
A168: 5 | B168: Hautes-Alpes | C168: Provence-Alpes-Côte d'Azur | D168: Yaourt | E168: 686 $ | F168: 822 $ | G168: 2,721 $ | H168: 457 | I168: 548 | J168: 1814 | K168: 686 $ | L168: 2,721 $
A169: 5 | B169: Hautes-Alpes | C169: Provence-Alpes-Côte d'Azur | D169: Lait | E169: 1,815 $ | F169: 2,178 $ | G169: 6,279 $ | H169: 605 | I169: 726 | J169: 2093 | K169: 2,118 $ | L169: 7,326 $
A170: 5 | B170: Hautes-Alpes | C170: Provence-Alpes-Côte d'Azur | D170: Riz | E170: 5,097 $ | F170: 6,114 $ | G170: 5,565 $ | H170: 1699 | I170: 2038 | J170: 1855 | K170: 5,097 $ | L170: 5,565 $
A171: 70 | B171: Haute-Saône | C171: Bourgogne-Franche-Comté | D171: Lait | E171: 7,593 $ | F171: 9,111 $ | G171: 2,397 $ | H171: 2531 | I171: 3037 | J171: 799 | K171: 8,859 $ | L171: 2,797 $
A172: 70 | B172: Haute-Saône | C172: Bourgogne-Franche-Comté | D172: Riz | E172: 5,571 $ | F172: 6,684 $ | G172: 2,799 $ | H172: 1857 | I172: 2228 | J172: 933 | K172: 5,571 $ | L172: 2,799 $
A173: 70 | B173: Haute-Saône | C173: Bourgogne-Franche-Comté | D173: Sucre | E173: 3,276 $ | F173: 3,930 $ | G173: 5,102 $ | H173: 1646 | I173: 1975 | J173: 2564 | K173: 3,292 $ | L173: 5,128 $
A174: 74 | B174: Haute-Savoie | C174: Auvergne-Rhône-Alpes | D174: Yaourt | E174: 2,628 $ | F174: 3,153 $ | G174: 2,012 $ | H174: 1752 | I174: 2102 | J174: 1341 | K174: 2,628 $ | L174: 2,012 $
A175: 74 | B175: Haute-Savoie | C175: Auvergne-Rhône-Alpes | D175: Lait | E175: 5,934 $ | F175: 7,119 $ | G175: 4,989 $ | H175: 1978 | I175: 2373 | J175: 1663 | K175: 6,923 $ | L175: 5,821 $
A176: 74 | B176: Haute-Savoie | C176: Auvergne-Rhône-Alpes | D176: Riz | E176: 4,767 $ | F176: 5,718 $ | G176: 4,059 $ | H176: 1589 | I176: 1906 | J176: 1353 | K176: 4,767 $ | L176: 4,059 $
A177: 74 | B177: Haute-Savoie | C177: Auvergne-Rhône-Alpes | D177: Fromage | E177: 6,356 $ | F177: 7,625 $ | G177: 3,410 $ | H177: 2889 | I177: 3466 | J177: 1550 | K177: 6,645 $ | L177: 3,565 $
A178: 74 | B178: Haute-Savoie | C178: Auvergne-Rhône-Alpes | D178: Sucre | E178: 5,170 $ | F178: 6,203 $ | G178: 3,789 $ | H178: 2598 | I178: 3117 | J178: 1904 | K178: 5,196 $ | L178: 3,808 $
A179: 65 | B179: Hautes-Pyrénées | C179: Languedoc-Roussillon-Midi-Pyrénées | D179: Fromage | E179: 5,782 $ | F179: 6,937 $ | G179: 5,093 $ | H179: 2628 | I179: 3153 | J179: 2315 | K179: 6,044 $ | L179: 5,325 $
A180: 65 | B180: Hautes-Pyrénées | C180: Languedoc-Roussillon-Midi-Pyrénées | D180: Yaourt | E180: 4,856 $ | F180: 5,826 $ | G180: 3,261 $ | H180: 3237 | I180: 3884 | J180: 2174 | K180: 4,856 $ | L180: 3,261 $
A181: 65 | B181: Hautes-Pyrénées | C181: Languedoc-Roussillon-Midi-Pyrénées | D181: Riz | E181: 10,473 $ | F181: 12,567 $ | G181: 7,884 $ | H181: 3491 | I181: 4189 | J181: 2628 | K181: 10,473 $ | L181: 7,884 $
A182: 65 | B182: Hautes-Pyrénées | C182: Languedoc-Roussillon-Midi-Pyrénées | D182: Sucre | E182: 6,814 $ | F182: 8,175 $ | G182: 2,491 $ | H182: 3424 | I182: 4108 | J182: 1252 | K182: 6,848 $ | L182: 2,504 $
A183: 65 | B183: Hautes-Pyrénées | C183: Languedoc-Roussillon-Midi-Pyrénées | D183: Lait | E183: 867 $ | F183: 1,038 $ | G183: 5,745 $ | H183: 289 | I183: 346 | J183: 1915 | K183: 1,012 $ | L183: 6,703 $
A184: 87 | B184: Haute-Vienne | C184: Aquitaine-Limousin-Poitou-Charentes | D184: Lait | E184: 8,676 $ | F184: 10,410 $ | G184: 4,770 $ | H184: 2892 | I184: 3470 | J184: 1590 | K184: 10,122 $ | L184: 5,565 $
A185: 87 | B185: Haute-Vienne | C185: Aquitaine-Limousin-Poitou-Charentes | D185: Yaourt | E185: 1,286 $ | F185: 1,542 $ | G185: 3,831 $ | H185: 857 | I185: 1028 | J185: 2554 | K185: 1,286 $ | L185: 3,831 $
A186: 87 | B186: Haute-Vienne | C186: Aquitaine-Limousin-Poitou-Charentes | D186: Sucre | E186: 4,364 $ | F186: 5,236 $ | G186: 4,376 $ | H186: 2193 | I186: 2631 | J186: 2199 | K186: 4,386 $ | L186: 4,398 $
A187: 87 | B187: Haute-Vienne | C187: Aquitaine-Limousin-Poitou-Charentes | D187: Riz | E187: 8,163 $ | F187: 9,795 $ | G187: 3,309 $ | H187: 2721 | I187: 3265 | J187: 1103 | K187: 8,163 $ | L187: 3,309 $
A188: 87 | B188: Haute-Vienne | C188: Aquitaine-Limousin-Poitou-Charentes | D188: Fromage | E188: 4,101 $ | F188: 4,919 $ | G188: 2,649 $ | H188: 1864 | I188: 2236 | J188: 1204 | K188: 4,287 $ | L188: 2,769 $
A189: 68 | B189: Haut-Rhin | C189: Alsace-Champagne-Ardenne-Lorraine | D189: Sucre | E189: 4,466 $ | F189: 5,357 $ | G189: 4,215 $ | H189: 2244 | I189: 2692 | J189: 2118 | K189: 4,488 $ | L189: 4,236 $
A190: 68 | B190: Haut-Rhin | C190: Alsace-Champagne-Ardenne-Lorraine | D190: Riz | E190: 11,541 $ | F190: 13,848 $ | G190: 4,542 $ | H190: 3847 | I190: 4616 | J190: 1514 | K190: 11,541 $ | L190: 4,542 $
A191: 68 | B191: Haut-Rhin | C191: Alsace-Champagne-Ardenne-Lorraine | D191: Lait | E191: 1,647 $ | F191: 1,974 $ | G191: 6,723 $ | H191: 549 | I191: 658 | J191: 2241 | K191: 1,922 $ | L191: 7,844 $
A192: 68 | B192: Haut-Rhin | C192: Alsace-Champagne-Ardenne-Lorraine | D192: Fromage | E192: 926 $ | F192: 1,111 $ | G192: 3,626 $ | H192: 421 | I192: 505 | J192: 1648 | K192: 968 $ | L192: 3,790 $
A193: 92 | B193: Hauts-de-Seine | C193: Île-de-France | D193: Fromage | E193: 1,476 $ | F193: 1,771 $ | G193: 1,817 $ | H193: 671 | I193: 805 | J193: 826 | K193: 1,543 $ | L193: 1,900 $
A194: 92 | B194: Hauts-de-Seine | C194: Île-de-France | D194: Sucre | E194: 2,279 $ | F194: 2,734 $ | G194: 2,086 $ | H194: 1145 | I194: 1374 | J194: 1048 | K194: 2,290 $ | L194: 2,096 $
A195: 92 | B195: Hauts-de-Seine | C195: Île-de-France | D195: Lait | E195: =H195*VLOOKUP($D195,$Q$2:$S$6,3,0)-K195 -> 450 $ | F195: =I195*VLOOKUP($D195,$Q$2:$S$6,3,0)-I195*VLOOKUP($D195,$Q$2:$S$6,2,0) -> 540 $ | G195: =J195*VLOOKUP($D195,$Q$2:$S$6,3,0)-L195 -> 2,862 $ | H195: 150 | I195: =INT(H195*1.2) -> 180 | J195: 954 | K195: =H195*VLOOKUP($D195,$Q$2:$S$6,2,0) -> 525 $ | L195: =J195*VLOOKUP($D195,$Q$2:$S$6,2,0) -> 3,339 $
A196: 92 | B196: Hauts-de-Seine | C196: Île-de-France | D196: Riz | E196: 10,941 $ | F196: 13,128 $ | G196: 7,710 $ | H196: 3647 | I196: 4376 | J196: 2570 | K196: 10,941 $ | L196: 7,710 $
A197: 92 | B197: Hauts-de-Seine | C197: Île-de-France | D197: Yaourt | E197: 4,085 $ | F197: 4,901 $ | G197: 2,507 $ | H197: 2723 | I197: 3267 | J197: 1671 | K197: 4,085 $ | L197: 2,507 $
A198: 34 | B198: Hérault | C198: Languedoc-Roussillon-Midi-Pyrénées | D198: Lait | E198: 10,458 $ | F198: 12,549 $ | G198: 4,374 $ | H198: 3486 | I198: 4183 | J198: 1458 | K198: 12,201 $ | L198: 5,103 $
A199: 34 | B199: Hérault | C199: Languedoc-Roussillon-Midi-Pyrénées | D199: Yaourt | E199: 5,006 $ | F199: 6,006 $ | G199: 3,720 $ | H199: 3337 | I199: 4004 | J199: 2480 | K199: 5,006 $ | L199: 3,720 $
A200: 34 | B200: Hérault | C200: Languedoc-Roussillon-Midi-Pyrénées | D200: Riz | E200: 3,435 $ | F200: 4,122 $ | G200: 5,505 $ | H200: 1145 | I200: 1374 | J200: 1835 | K200: 3,435 $ | L200: 5,505 $
... 220 more rows

Sheet nomRegions (hidden)
A1: numReg | B1: nomReg | C1: Cibles | D1: Résultat | G1: numReg | H1: pourcReg | Q1: nomDept | R1: nomProd | S1: 2014 | T1: 2015
A2: 44R | B2: Alsace-Champagne-Ardenne-Lorraine | C2: =SUMIF(donnees!$C$2:$C$420,$B2,donnees!$F$2:$F$420) -> 223,138 $ | D2: =SUMIF(donnees!$C$2:$C$420,$B2,donnees!$G$2:$G$420) -> 188,311 $ | E2: =VLOOKUP(D2/C2,classeReg,4,1) -> classe1 | G2: 44P | H2: =D2/C2 -> 84% | I2: Alsace-Champagne-Ardenne-Lorraine | J2: F | K2: 76R | P2: =Q2&ROW() -> Alsace-Champagne-Ardenne-Lorraine2 | Q2: Alsace-Champagne-Ardenne-Lorraine | R2: Fromage | S2: =SUMIFS(donnees!$E$2:$E$420,donnees!$D$2:$D$420,nomRegions!$R2,donnees!$C$2:$C$420,nomRegions!$Q2) -> 33228.8 | T2: =SUMIFS(donnees!$G$2:$G$420,donnees!$D$2:$D$420,nomRegions!$R2,donnees!$C$2:$C$420,nomRegions!$Q2) -> 32936.2
A3: 75R | B3: Aquitaine-Limousin-Poitou-Charentes | C3: =SUMIF(donnees!$C$2:$C$420,$B3,donnees!$F$2:$F$420) -> 266,339 $ | D3: =SUMIF(donnees!$C$2:$C$420,$B3,donnees!$G$2:$G$420) -> 217,147 $ | E3: =VLOOKUP(D3/C3,classeReg,4,1) -> classe1 | G3: 75P | H3: =D3/C3 -> 82% | P3: =Q3&ROW() -> Alsace-Champagne-Ardenne-Lorraine3 | Q3: Alsace-Champagne-Ardenne-Lorraine | R3: Lait | S3: =SUMIFS(donnees!$E$2:$E$420,donnees!$D$2:$D$420,nomRegions!$R3,donnees!$C$2:$C$420,nomRegions!$Q3) -> 49755 | T3: =SUMIFS(donnees!$G$2:$G$420,donnees!$D$2:$D$420,nomRegions!$R3,donnees!$C$2:$C$420,nomRegions!$Q3) -> 44895
A4: 84R | B4: Auvergne-Rhône-Alpes | C4: =SUMIF(donnees!$C$2:$C$420,$B4,donnees!$F$2:$F$420) -> 239,037 $ | D4: =SUMIF(donnees!$C$2:$C$420,$B4,donnees!$G$2:$G$420) -> 236,882 $ | E4: classe2 | G4: 84P | H4: 99% | P4: Alsace-Champagne-Ardenne-Lorraine4 | Q4: Alsace-Champagne-Ardenne-Lorraine | R4: Riz | S4: =SUMIFS(donnees!$E$2:$E$420,donnees!$D$2:$D$420,nomRegions!$R4,donnees!$C$2:$C$420,nomRegions!$Q4) -> 58566 | T4: =SUMIFS(donnees!$G$2:$G$420,donnees!$D$2:$D$420,nomRegions!$R4,donnees!$C$2:$C$420,nomRegions!$Q4) -> 61416
A5: 27R | B5: Bourgogne-Franche-Comté | C5: =SUMIF(donnees!$C$2:$C$420,$B5,donnees!$F$2:$F$420) -> 146,495 $ | D5: =SUMIF(donnees!$C$2:$C$420,$B5,donnees!$G$2:$G$420) -> 118,606 $ | E5: classe1 | G5: 27P | H5: 81% | J5: =IFERROR(VLOOKUP(idRegion,$A$2:$B$14,2,0),"") -> Languedoc-Roussillon-Midi-Pyrénées | P5: Alsace-Champagne-Ardenne-Lorraine5 | Q5: Alsace-Champagne-Ardenne-Lorraine | R5: Sucre | S5: =SUMIFS(donnees!$E$2:$E$420,donnees!$D$2:$D$420,nomRegions!$R5,donnees!$C$2:$C$420,nomRegions!$Q5) -> 27364.49 | T5: =SUMIFS(donnees!$G$2:$G$420,donnees!$D$2:$D$420,nomRegions!$R5,donnees!$C$2:$C$420,nomRegions!$Q5) -> 32526.55
A6: 53R | B6: Bretagne | C6: =SUMIF(donnees!$C$2:$C$420,$B6,donnees!$F$2:$F$420) -> 61,001 $ | D6: =SUMIF(donnees!$C$2:$C$420,$B6,donnees!$G$2:$G$420) -> 65,875 $ | E6: classe3 | G6: 53P | H6: 108% | P6: Alsace-Champagne-Ardenne-Lorraine6 | Q6: Alsace-Champagne-Ardenne-Lorraine | R6: Yaourt | S6: =SUMIFS(donnees!$E$2:$E$420,donnees!$D$2:$D$420,nomRegions!$R6,donnees!$C$2:$C$420,nomRegions!$Q6) -> 17068.5 | T6: =SUMIFS(donnees!$G$2:$G$420,donnees!$D$2:$D$420,nomRegions!$R6,donnees!$C$2:$C$420,nomRegions!$Q6) -> 16537.5
A7: 24R | B7: Centre-Val de Loire | C7: =SUMIF(donnees!$C$2:$C$420,$B7,donnees!$F$2:$F$420) -> 122,432 $ | D7: =SUMIF(donnees!$C$2:$C$420,$B7,donnees!$G$2:$G$420) -> 100,413 $ | E7: classe1 | G7: 24P | H7: 82% | K7: nomDept | L7: nomProd | M7: 2014 | N7: 2015 | P7: Aquitaine-Limousin-Poitou-Charentes7 | Q7: Aquitaine-Limousin-Poitou-Charentes | R7: Fromage | S7: =SUMIFS(donnees!$E$2:$E$420,donnees!$D$2:$D$420,nomRegions!$R7,donnees!$C$2:$C$420,nomRegions!$Q7) -> 32348.8 | T7: =SUMIFS(donnees!$G$2:$G$420,donnees!$D$2:$D$420,nomRegions!$R7,donnees!$C$2:$C$420,nomRegions!$Q7) -> 43551.2
A8: 94R | B8: Corse | C8: =SUMIF(donnees!$C$2:$C$420,$B8,donnees!$F$2:$F$420) -> 41,258 $ | D8: =SUMIF(donnees!$C$2:$C$420,$B8,donnees!$G$2:$G$420) -> 24,764 $ | E8: classe0 | G8: 94P | H8: 60% | K8: =IFERROR($J$5& MATCH($J$5,$Q:$Q,0),"") -> Languedoc-Roussillon-Midi-Pyrénées42 | L8: =IFERROR(VLOOKUP($K8,detailsRegion,COLUMN(S1)-COLUMN($P$1),0),"") -> Fromage | M8: 48,847 € | N8: 46,050 € | P8: Aquitaine-Limousin-Poitou-Charentes8 | Q8: Aquitaine-Limousin-Poitou-Charentes | R8: Lait | S8: =SUMIFS(donnees!$E$2:$E$420,donnees!$D$2:$D$420,nomRegions!$R8,donnees!$C$2:$C$420,nomRegions!$Q8) -> 69819 | T8: =SUMIFS(donnees!$G$2:$G$420,donnees!$D$2:$D$420,nomRegions!$R8,donnees!$C$2:$C$420,nomRegions!$Q8) -> 48900
A9: 11R | B9: Île-de-France | C9: =SUMIF(donnees!$C$2:$C$420,$B9,donnees!$F$2:$F$420) -> 151,705 $ | D9: =SUMIF(donnees!$C$2:$C$420,$B9,donnees!$G$2:$G$420) -> 124,593 $ | E9: classe1 | G9: 11P | H9: 82% | K9: =IFERROR($J$5& MATCH($J$5,$Q:$Q,0)+ROW(O1),"") -> Languedoc-Roussillon-Midi-Pyrénées43 | L9: Lait | M9: 52,122 € | N9: 62,547 € | P9: Aquitaine-Limousin-Poitou-Charentes9 | Q9: Aquitaine-Limousin-Poitou-Charentes | R9: Riz | S9: =SUMIFS(donnees!$E$2:$E$420,donnees!$D$2:$D$420,nomRegions!$R9,donnees!$C$2:$C$420,nomRegions!$Q9) -> 56649 | T9: =SUMIFS(donnees!$G$2:$G$420,donnees!$D$2:$D$420,nomRegions!$R9,donnees!$C$2:$C$420,nomRegions!$Q9) -> 48210
A10: 76R | B10: Languedoc-Roussillon-Midi-Pyrénées | C10: =SUMIF(donnees!$C$2:$C$420,$B10,donnees!$F$2:$F$420) -> 270,784 $ | D10: =SUMIF(donnees!$C$2:$C$420,$B10,donnees!$G$2:$G$420) -> 243,338 $ | E10: classe2 | G10: 76P | H10: 90% | K10: =IFERROR($J$5& MATCH($J$5,$Q:$Q,0)+ROW(O2),"") -> Languedoc-Roussillon-Midi-Pyrénées44 | L10: Riz | M10: 55,569 € | N10: 58,782 € | P10: Aquitaine-Limousin-Poitou-Charentes10 | Q10: Aquitaine-Limousin-Poitou-Charentes | R10: Sucre | S10: =SUMIFS(donnees!$E$2:$E$420,donnees!$D$2:$D$420,nomRegions!$R10,donnees!$C$2:$C$420,nomRegions!$Q10) -> 36570.23 | T10: =SUMIFS(donnees!$G$2:$G$420,donnees!$D$2:$D$420,nomRegions!$R10,donnees!$C$2:$C$420,nomRegions!$Q10) -> 44096.41
A11: 32R | B11: Nord-Pas-de-Calais-Picardie | C11: =SUMIF(donnees!$C$2:$C$420,$B11,donnees!$F$2:$F$420) -> 79,599 $ | D11: =SUMIF(donnees!$C$2:$C$420,$B11,donnees!$G$2:$G$420) -> 85,567 $ | E11: classe3 | G11: 32P | H11: 107% | K11: Languedoc-Roussillon-Midi-Pyrénées45 | L11: Sucre | M11: 40,825 € | N11: 41,923 € | P11: Aquitaine-Limousin-Poitou-Charentes11 | Q11: Aquitaine-Limousin-Poitou-Charentes | R11: Yaourt | S11: =SUMIFS(donnees!$E$2:$E$420,donnees!$D$2:$D$420,nomRegions!$R11,donnees!$C$2:$C$420,nomRegions!$Q11) -> 26608.5 | T11: =SUMIFS(donnees!$G$2:$G$420,donnees!$D$2:$D$420,nomRegions!$R11,donnees!$C$2:$C$420,nomRegions!$Q11) -> 32389.5
A12: 28R | B12: Normandie | C12: =SUMIF(donnees!$C$2:$C$420,$B12,donnees!$F$2:$F$420) -> 112,642 $ | D12: =SUMIF(donnees!$C$2:$C$420,$B12,donnees!$G$2:$G$420) -> 84,073 $ | E12: classe0 | G12: 28P | H12: 75% | K12: Languedoc-Roussillon-Midi-Pyrénées46 | L12: Yaourt | M12: 28,329 € | N12: 34,035 € | P12: Auvergne-Rhône-Alpes12 | Q12: Auvergne-Rhône-Alpes | R12: Fromage | S12: =SUMIFS(donnees!$E$2:$E$420,donnees!$D$2:$D$420,nomRegions!$R12,donnees!$C$2:$C$420,nomRegions!$Q12) -> 43296 | T12: =SUMIFS(donnees!$G$2:$G$420,donnees!$D$2:$D$420,nomRegions!$R12,donnees!$C$2:$C$420,nomRegions!$Q12) -> 47942.4
A13: 52R | B13: Pays de la Loire | C13: =SUMIF(donnees!$C$2:$C$420,$B13,donnees!$F$2:$F$420) -> 114,019 $ | D13: =SUMIF(donnees!$C$2:$C$420,$B13,donnees!$G$2:$G$420) -> 98,215 $ | E13: classe2 | G13: 52P | H13: 86% | L13: total | M13: =SUM(M8:M12) -> 225,691 € | N13: =SUM(N8:N12) -> 243,338 € | P13: Auvergne-Rhône-Alpes13 | Q13: Auvergne-Rhône-Alpes | R13: Lait | S13: =SUMIFS(donnees!$E$2:$E$420,donnees!$D$2:$D$420,nomRegions!$R13,donnees!$C$2:$C$420,nomRegions!$Q13) -> 48138 | T13: =SUMIFS(donnees!$G$2:$G$420,donnees!$D$2:$D$420,nomRegions!$R13,donnees!$C$2:$C$420,nomRegions!$Q13) -> 58830
A14: 93R | B14: Provence-Alpes-Côte d'Azur | C14: =SUMIF(donnees!$C$2:$C$420,$B14,donnees!$F$2:$F$420) -> 124,640 $ | D14: =SUMIF(donnees!$C$2:$C$420,$B14,donnees!$G$2:$G$420) -> 100,559 $ | E14: classe1 | G14: 93P | H14: 81% | P14: Auvergne-Rhône-Alpes14 | Q14: Auvergne-Rhône-Alpes | R14: Riz | S14: =SUMIFS(donnees!$E$2:$E$420,donnees!$D$2:$D$420,nomRegions!$R14,donnees!$C$2:$C$420,nomRegions!$Q14) -> 54936 | T14: =SUMIFS(donnees!$G$2:$G$420,donnees!$D$2:$D$420,nomRegions!$R14,donnees!$C$2:$C$420,nomRegions!$Q14) -> 68034
B15: Total | C15: =SUM(C2:C14) -> 1,953,090 $ | D15: =SUM(D2:D14) -> 1,688,344 $ | P15: Auvergne-Rhône-Alpes15 | Q15: Auvergne-Rhône-Alpes | R15: Sucre | S15: =SUMIFS(donnees!$E$2:$E$420,donnees!$D$2:$D$420,nomRegions!$R15,donnees!$C$2:$C$420,nomRegions!$Q15) -> 37722.44 | T15: =SUMIFS(donnees!$G$2:$G$420,donnees!$D$2:$D$420,nomRegions!$R15,donnees!$C$2:$C$420,nomRegions!$Q15) -> 34717.54
P16: Auvergne-Rhône-Alpes16 | Q16: Auvergne-Rhône-Alpes | R16: Yaourt | S16: =SUMIFS(donnees!$E$2:$E$420,donnees!$D$2:$D$420,nomRegions!$R16,donnees!$C$2:$C$420,nomRegions!$Q16) -> 15153 | T16: =SUMIFS(donnees!$G$2:$G$420,donnees!$D$2:$D$420,nomRegions!$R16,donnees!$C$2:$C$420,nomRegions!$Q16) -> 27358.5
A17: =D2/C2 -> 0.843921987 | B17: =B2 -> Alsace-Champagne-Ardenne-Lorraine | P17: Bourgogne-Franche-Comté17 | Q17: Bourgogne-Franche-Comté | R17: Fromage | S17: =SUMIFS(donnees!$E$2:$E$420,donnees!$D$2:$D$420,nomRegions!$R17,donnees!$C$2:$C$420,nomRegions!$Q17) -> 18515.2 | T17: =SUMIFS(donnees!$G$2:$G$420,donnees!$D$2:$D$420,nomRegions!$R17,donnees!$C$2:$C$420,nomRegions!$Q17) -> 14416.6
A18: =D3/C3 -> 0.8153034054 | B18: =B3 -> Aquitaine-Limousin-Poitou-Charentes | K18: grapheC et grapheB | P18: Bourgogne-Franche-Comté18 | Q18: Bourgogne-Franche-Comté | R18: Lait | S18: =SUMIFS(donnees!$E$2:$E$420,donnees!$D$2:$D$420,nomRegions!$R18,donnees!$C$2:$C$420,nomRegions!$Q18) -> 32298 | T18: =SUMIFS(donnees!$G$2:$G$420,donnees!$D$2:$D$420,nomRegions!$R18,donnees!$C$2:$C$420,nomRegions!$Q18) -> 34347
A19: 0.9909865829 | B19: Auvergne-Rhône-Alpes | J19: =IF(typeD="R",actRegion,IF(typeD="F","France métropolitaine",deptNum)) -> France métropolitaine | K19: nomProd | L19: 2014 | M19: 2015 | N19: cible | P19: Bourgogne-Franche-Comté19 | Q19: Bourgogne-Franche-Comté | R19: Riz | S19: =SUMIFS(donnees!$E$2:$E$420,donnees!$D$2:$D$420,nomRegions!$R19,donnees!$C$2:$C$420,nomRegions!$Q19) -> 33342 | T19: =SUMIFS(donnees!$G$2:$G$420,donnees!$D$2:$D$420,nomRegions!$R19,donnees!$C$2:$C$420,nomRegions!$Q19) -> 28299
A20: 0.809621349 | B20: Bourgogne-Franche-Comté | K20: =IF(typeD="R",L8,IF(typeD="F",K35,nomDept!L8)) -> Fromage | L20: =IF(typeD="R",M8,IF(typeD="F",L35,nomDept!M8)) -> 300434.2 | M20: =IF(typeD="R",N8,IF(typeD="F",M35,nomDept!N8)) -> 318894.6 | N20: =IF(typeD="R",VLOOKUP(actRegion,$B$2:$C$14,2,0),IF(typeD="F",$C$15,VLOOKUP(actDept,nomDept!$B$2:$C$97,2,0))) -> 1,953,090 $ | P20: Bourgogne-Franche-Comté20 | Q20: Bourgogne-Franche-Comté | R20: Sucre | S20: =SUMIFS(donnees!$E$2:$E$420,donnees!$D$2:$D$420,nomRegions!$R20,donnees!$C$2:$C$420,nomRegions!$Q20) -> 24190.44 | T20: =SUMIFS(donnees!$G$2:$G$420,donnees!$D$2:$D$420,nomRegions!$R20,donnees!$C$2:$C$420,nomRegions!$Q20) -> 25288.92
A21: 1.079914211 | B21: Bretagne | J21: =IF(typeD="F","France: résultats MCB 2015",IF(typeD="D","Résultats MCB 2015: "&J19,"Résultats MCB 2015: "&actRegion)) -> France: résultats MCB 2015 | K21: =IF(typeD="R",L9,IF(typeD="F",K36,nomDept!L9)) -> Lait | L21: =IF(typeD="R",M9,IF(typeD="F",L36,nomDept!M9)) -> 401805 | M21: =IF(typeD="R",N9,IF(typeD="F",M36,nomDept!N9)) -> 419412 | P21: Bourgogne-Franche-Comté21 | Q21: Bourgogne-Franche-Comté | R21: Yaourt | S21: =SUMIFS(donnees!$E$2:$E$420,donnees!$D$2:$D$420,nomRegions!$R21,donnees!$C$2:$C$420,nomRegions!$Q21) -> 13759.5 | T21: =SUMIFS(donnees!$G$2:$G$420,donnees!$D$2:$D$420,nomRegions!$R21,donnees!$C$2:$C$420,nomRegions!$Q21) -> 16254
A22: 0.820152672 | B22: Centre-Val de Loire | K22: =IF(typeD="R",L10,IF(typeD="F",K37,nomDept!L10)) -> Riz | L22: =IF(typeD="R",M10,IF(typeD="F",L37,nomDept!M10)) -> 459363 | M22: =IF(typeD="R",N10,IF(typeD="F",M37,nomDept!N10)) -> 435645 | P22: Bretagne22 | Q22: Bretagne | R22: Fromage | S22: =SUMIFS(donnees!$E$2:$E$420,donnees!$D$2:$D$420,nomRegions!$R22,donnees!$C$2:$C$420,nomRegions!$Q22) -> 14091 | T22: =SUMIFS(donnees!$G$2:$G$420,donnees!$D$2:$D$420,nomRegions!$R22,donnees!$C$2:$C$420,nomRegions!$Q22) -> 18326
A23: 0.600215038 | B23: Corse | K23: =IF(typeD="R",L11,IF(typeD="F",K38,nomDept!L11)) -> Sucre | L23: =IF(typeD="R",M11,IF(typeD="F",L38,nomDept!M11)) -> 276365.23 | M23: =IF(typeD="R",N11,IF(typeD="F",M38,nomDept!N11)) -> 291696.19 | P23: Bretagne23 | Q23: Bretagne | R23: Lait | S23: =SUMIFS(donnees!$E$2:$E$420,donnees!$D$2:$D$420,nomRegions!$R23,donnees!$C$2:$C$420,nomRegions!$Q23) -> 8898 | T23: =SUMIFS(donnees!$G$2:$G$420,donnees!$D$2:$D$420,nomRegions!$R23,donnees!$C$2:$C$420,nomRegions!$Q23) -> 11391
A24: 0.8212859288 | B24: Île-de-France | K24: =IF(typeD="R",L12,IF(typeD="F",K39,nomDept!L12)) -> Yaourt | L24: =IF(typeD="R",M12,IF(typeD="F",L39,nomDept!M12)) -> 190107 | M24: =IF(typeD="R",N12,IF(typeD="F",M39,nomDept!N12)) -> 222696 | P24: Bretagne24 | Q24: Bretagne | R24: Riz | S24: =SUMIFS(donnees!$E$2:$E$420,donnees!$D$2:$D$420,nomRegions!$R24,donnees!$C$2:$C$420,nomRegions!$Q24) -> 9786 | T24: =SUMIFS(donnees!$G$2:$G$420,donnees!$D$2:$D$420,nomRegions!$R24,donnees!$C$2:$C$420,nomRegions!$Q24) -> 10437
A25: 0.8986415961 | B25: Languedoc-Roussillon-Midi-Pyrénées | K25: =IF(typeD="R",L13,IF(typeD="F",K40,nomDept!L13)) -> total | L25: =IF(typeD="R",M13,IF(typeD="F",L40,nomDept!M13)) -> 1,628,074 $ | M25: =IF(typeD="R",N13,IF(typeD="F",M40,nomDept!N13)) -> 1,688,344 $ | P25: Bretagne25 | Q25: Bretagne | R25: Sucre | S25: =SUMIFS(donnees!$E$2:$E$420,donnees!$D$2:$D$420,nomRegions!$R25,donnees!$C$2:$C$420,nomRegions!$Q25) -> 9416.68 | T25: =SUMIFS(donnees!$G$2:$G$420,donnees!$D$2:$D$420,nomRegions!$R25,donnees!$C$2:$C$420,nomRegions!$Q25) -> 17243.35
A26: 1.074976611 | B26: Nord-Pas-de-Calais-Picardie | P26: Bretagne26 | Q26: Bretagne | R26: Yaourt | S26: =SUMIFS(donnees!$E$2:$E$420,donnees!$D$2:$D$420,nomRegions!$R26,donnees!$C$2:$C$420,nomRegions!$Q26) -> 8658 | T26: =SUMIFS(donnees!$G$2:$G$420,donnees!$D$2:$D$420,nomRegions!$R26,donnees!$C$2:$C$420,nomRegions!$Q26) -> 8478
A27: 0.746375276 | B27: Normandie | P27: Centre-Val de Loire27 | Q27: Centre-Val de Loire | R27: Fromage | S27: =SUMIFS(donnees!$E$2:$E$420,donnees!$D$2:$D$420,nomRegions!$R27,donnees!$C$2:$C$420,nomRegions!$Q27) -> 25335.2 | T27: =SUMIFS(donnees!$G$2:$G$420,donnees!$D$2:$D$420,nomRegions!$R27,donnees!$C$2:$C$420,nomRegions!$Q27) -> 23522.4
A28: =D13/C13 -> 0.8613852676 | B28: Pays de la Loire | K28: =J19&": répartition de la MCB par produit (%)" -> France métropolitaine: répartition de la MCB par produit (%) | P28: Centre-Val de Loire28 | Q28: Centre-Val de Loire | R28: Lait | S28: =SUMIFS(donnees!$E$2:$E$420,donnees!$D$2:$D$420,nomRegions!$R28,donnees!$C$2:$C$420,nomRegions!$Q28) -> 7632 | T28: =SUMIFS(donnees!$G$2:$G$420,donnees!$D$2:$D$420,nomRegions!$R28,donnees!$C$2:$C$420,nomRegions!$Q28) -> 21432
A29: 0.8067966488 | B29: Provence-Alpes-Côte d'Azur | K29: =J19&": comparaison de la MCB" -> France métropolitaine: comparaison de la MCB | P29: Centre-Val de Loire29 | Q29: Centre-Val de Loire | R29: Riz | S29: =SUMIFS(donnees!$E$2:$E$420,donnees!$D$2:$D$420,nomRegions!$R29,donnees!$C$2:$C$420,nomRegions!$Q29) -> 28656 | T29: =SUMIFS(donnees!$G$2:$G$420,donnees!$D$2:$D$420,nomRegions!$R29,donnees!$C$2:$C$420,nomRegions!$Q29) -> 19983
P30: Centre-Val de Loire30 | Q30: Centre-Val de Loire | R30: Sucre | S30: =SUMIFS(donnees!$E$2:$E$420,donnees!$D$2:$D$420,nomRegions!$R30,donnees!$C$2:$C$420,nomRegions!$Q30) -> 27282.9 | T30: =SUMIFS(donnees!$G$2:$G$420,donnees!$D$2:$D$420,nomRegions!$R30,donnees!$C$2:$C$420,nomRegions!$Q30) -> 22116.86
P31: Centre-Val de Loire31 | Q31: Centre-Val de Loire | R31: Yaourt | S31: =SUMIFS(donnees!$E$2:$E$420,donnees!$D$2:$D$420,nomRegions!$R31,donnees!$C$2:$C$420,nomRegions!$Q31) -> 13140 | T31: =SUMIFS(donnees!$G$2:$G$420,donnees!$D$2:$D$420,nomRegions!$R31,donnees!$C$2:$C$420,nomRegions!$Q31) -> 13359
P32: Corse32 | Q32: Corse | R32: Fromage | S32: =SUMIFS(donnees!$E$2:$E$420,donnees!$D$2:$D$420,nomRegions!$R32,donnees!$C$2:$C$420,nomRegions!$Q32) -> 8087.2 | T32: =SUMIFS(donnees!$G$2:$G$420,donnees!$D$2:$D$420,nomRegions!$R32,donnees!$C$2:$C$420,nomRegions!$Q32) -> 7977.2
P33: Corse33 | Q33: Corse | R33: Lait | S33: =SUMIFS(donnees!$E$2:$E$420,donnees!$D$2:$D$420,nomRegions!$R33,donnees!$C$2:$C$420,nomRegions!$Q33) -> 1995 | T33: =SUMIFS(donnees!$G$2:$G$420,donnees!$D$2:$D$420,nomRegions!$R33,donnees!$C$2:$C$420,nomRegions!$Q33) -> 3912
K34: nomPrdt | L34: 2014 | M34: 2015 | P34: Corse34 | Q34: Corse | R34: Riz | S34: =SUMIFS(donnees!$E$2:$E$420,donnees!$D$2:$D$420,nomRegions!$R34,donnees!$C$2:$C$420,nomRegions!$Q34) -> 10524 | T34: =SUMIFS(donnees!$G$2:$G$420,donnees!$D$2:$D$420,nomRegions!$R34,donnees!$C$2:$C$420,nomRegions!$Q34) -> 6651
K35: Fromage | L35: =SUMIF(donnees!$D$2:$D$420,nomRegions!$K35,donnees!$E$2:$E$420) -> 300434.2 | M35: =SUMIF(donnees!$D$2:$D$420,nomRegions!$K35,donnees!$G$2:$G$420) -> 318894.6 | N35: =K35 -> Fromage | P35: Corse35 | Q35: Corse | R35: Sucre | S35: =SUMIFS(donnees!$E$2:$E$420,donnees!$D$2:$D$420,nomRegions!$R35,donnees!$C$2:$C$420,nomRegions!$Q35) -> 9183.85 | T35: =SUMIFS(donnees!$G$2:$G$420,donnees!$D$2:$D$420,nomRegions!$R35,donnees!$C$2:$C$420,nomRegions!$Q35) -> 3508.37
K36: Lait | L36: =SUMIF(donnees!$D$2:$D$420,nomRegions!$K36,donnees!$E$2:$E$420) -> 401805 | M36: =SUMIF(donnees!$D$2:$D$420,nomRegions!$K36,donnees!$G$2:$G$420) -> 419412 | N36: =K36 -> Lait | P36: Corse36 | Q36: Corse | R36: Yaourt | S36: =SUMIFS(donnees!$E$2:$E$420,donnees!$D$2:$D$420,nomRegions!$R36,donnees!$C$2:$C$420,nomRegions!$Q36) -> 4596 | T36: =SUMIFS(donnees!$G$2:$G$420,donnees!$D$2:$D$420,nomRegions!$R36,donnees!$C$2:$C$420,nomRegions!$Q36) -> 2715
K37: Riz | L37: =SUMIF(donnees!$D$2:$D$420,nomRegions!$K37,donnees!$E$2:$E$420) -> 459363 | M37: =SUMIF(donnees!$D$2:$D$420,nomRegions!$K37,donnees!$G$2:$G$420) -> 435645 | N37: Riz | P37: Île-de-France37 | Q37: Île-de-France | R37: Fromage | S37: =SUMIFS(donnees!$E$2:$E$420,donnees!$D$2:$D$420,nomRegions!$R37,donnees!$C$2:$C$420,nomRegions!$Q37) -> 6934.4 | T37: =SUMIFS(donnees!$G$2:$G$420,donnees!$D$2:$D$420,nomRegions!$R37,donnees!$C$2:$C$420,nomRegions!$Q37) -> 16700.2
K38: Sucre | L38: =SUMIF(donnees!$D$2:$D$420,nomRegions!$K38,donnees!$E$2:$E$420) -> 276365.23 | M38: =SUMIF(donnees!$D$2:$D$420,nomRegions!$K38,donnees!$G$2:$G$420) -> 291696.19 | N38: Sucre | P38: Île-de-France38 | Q38: Île-de-France | R38: Lait | S38: =SUMIFS(donnees!$E$2:$E$420,donnees!$D$2:$D$420,nomRegions!$R38,donnees!$C$2:$C$420,nomRegions!$Q38) -> 42087 | T38: =SUMIFS(donnees!$G$2:$G$420,donnees!$D$2:$D$420,nomRegions!$R38,donnees!$C$2:$C$420,nomRegions!$Q38) -> 41445
K39: Yaourt | L39: =SUMIF(donnees!$D$2:$D$420,nomRegions!$K39,donnees!$E$2:$E$420) -> 190107 | M39: =SUMIF(donnees!$D$2:$D$420,nomRegions!$K39,donnees!$G$2:$G$420) -> 222696 | N39: Yaourt | P39: Île-de-France39 | Q39: Île-de-France | R39: Riz | S39: =SUMIFS(donnees!$E$2:$E$420,donnees!$D$2:$D$420,nomRegions!$R39,donnees!$C$2:$C$420,nomRegions!$Q39) -> 42111 | T39: =SUMIFS(donnees!$G$2:$G$420,donnees!$D$2:$D$420,nomRegions!$R39,donnees!$C$2:$C$420,nomRegions!$Q39) -> 32094
K40: total | L40: =SUM(L35:L39) -> 1,628,074.43 $ | M40: =SUM(M35:M39) -> 1,688,343.79 $ | P40: Île-de-France40 | Q40: Île-de-France | R40: Sucre | S40: =SUMIFS(donnees!$E$2:$E$420,donnees!$D$2:$D$420,nomRegions!$R40,donnees!$C$2:$C$420,nomRegions!$Q40) -> 14467.3 | T40: =SUMIFS(donnees!$G$2:$G$420,donnees!$D$2:$D$420,nomRegions!$R40,donnees!$C$2:$C$420,nomRegions!$Q40) -> 16672.22
P41: Île-de-France41 | Q41: Île-de-France | R41: Yaourt | S41: =SUMIFS(donnees!$E$2:$E$420,donnees!$D$2:$D$420,nomRegions!$R41,donnees!$C$2:$C$420,nomRegions!$Q41) -> 20850 | T41: =SUMIFS(donnees!$G$2:$G$420,donnees!$D$2:$D$420,nomRegions!$R41,donnees!$C$2:$C$420,nomRegions!$Q41) -> 17682
P42: Languedoc-Roussillon-Midi-Pyrénées42 | Q42: Languedoc-Roussillon-Midi-Pyrénées | R42: Fromage | S42: =SUMIFS(donnees!$E$2:$E$420,donnees!$D$2:$D$420,nomRegions!$R42,donnees!$C$2:$C$420,nomRegions!$Q42) -> 48846.6 | T42: =SUMIFS(donnees!$G$2:$G$420,donnees!$D$2:$D$420,nomRegions!$R42,donnees!$C$2:$C$420,nomRegions!$Q42) -> 46050.4
P43: Languedoc-Roussillon-Midi-Pyrénées43 | Q43: Languedoc-Roussillon-Midi-Pyrénées | R43: Lait | S43: =SUMIFS(donnees!$E$2:$E$420,donnees!$D$2:$D$420,nomRegions!$R43,donnees!$C$2:$C$420,nomRegions!$Q43) -> 52122 | T43: =SUMIFS(donnees!$G$2:$G$420,donnees!$D$2:$D$420,nomRegions!$R43,donnees!$C$2:$C$420,nomRegions!$Q43) -> 62547
P44: Languedoc-Roussillon-Midi-Pyrénées44 | Q44: Languedoc-Roussillon-Midi-Pyrénées | R44: Riz | S44: =SUMIFS(donnees!$E$2:$E$420,donnees!$D$2:$D$420,nomRegions!$R44,donnees!$C$2:$C$420,nomRegions!$Q44) -> 55569 | T44: =SUMIFS(donnees!$G$2:$G$420,donnees!$D$2:$D$420,nomRegions!$R44,donnees!$C$2:$C$420,nomRegions!$Q44) -> 58782
P45: Languedoc-Roussillon-Midi-Pyrénées45 | Q45: Languedoc-Roussillon-Midi-Pyrénées | R45: Sucre | S45: =SUMIFS(donnees!$E$2:$E$420,donnees!$D$2:$D$420,nomRegions!$R45,donnees!$C$2:$C$420,nomRegions!$Q45) -> 40824.85 | T45: =SUMIFS(donnees!$G$2:$G$420,donnees!$D$2:$D$420,nomRegions!$R45,donnees!$C$2:$C$420,nomRegions!$Q45) -> 41923.33
P46: Languedoc-Roussillon-Midi-Pyrénées46 | Q46: Languedoc-Roussillon-Midi-Pyrénées | R46: Yaourt | S46: =SUMIFS(donnees!$E$2:$E$420,donnees!$D$2:$D$420,nomRegions!$R46,donnees!$C$2:$C$420,nomRegions!$Q46) -> 28329 | T46: =SUMIFS(donnees!$G$2:$G$420,donnees!$D$2:$D$420,nomRegions!$R46,donnees!$C$2:$C$420,nomRegions!$Q46) -> 34035
P47: Nord-Pas-de-Calais-Picardie47 | Q47: Nord-Pas-de-Calais-Picardie | R47: Fromage | S47: =SUMIFS(donnees!$E$2:$E$420,donnees!$D$2:$D$420,nomRegions!$R47,donnees!$C$2:$C$420,nomRegions!$Q47) -> 15272.4 | T47: =SUMIFS(donnees!$G$2:$G$420,donnees!$D$2:$D$420,nomRegions!$R47,donnees!$C$2:$C$420,nomRegions!$Q47) -> 17452.6
P48: Nord-Pas-de-Calais-Picardie48 | Q48: Nord-Pas-de-Calais-Picardie | R48: Lait | S48: =SUMIFS(donnees!$E$2:$E$420,donnees!$D$2:$D$420,nomRegions!$R48,donnees!$C$2:$C$420,nomRegions!$Q48) -> 12039 | T48: =SUMIFS(donnees!$G$2:$G$420,donnees!$D$2:$D$420,nomRegions!$R48,donnees!$C$2:$C$420,nomRegions!$Q48) -> 20583
P49: Nord-Pas-de-Calais-Picardie49 | Q49: Nord-Pas-de-Calais-Picardie | R49: Riz | S49: =SUMIFS(donnees!$E$2:$E$420,donnees!$D$2:$D$420,nomRegions!$R49,donnees!$C$2:$C$420,nomRegions!$Q49) -> 22506 | T49: =SUMIFS(donnees!$G$2:$G$420,donnees!$D$2:$D$420,nomRegions!$R49,donnees!$C$2:$C$420,nomRegions!$Q49) -> 26187
P50: Nord-Pas-de-Calais-Picardie50 | Q50: Nord-Pas-de-Calais-Picardie | R50: Sucre | S50: =SUMIFS(donnees!$E$2:$E$420,donnees!$D$2:$D$420,nomRegions!$R50,donnees!$C$2:$C$420,nomRegions!$Q50) -> 8513.22 | T50: =SUMIFS(donnees!$G$2:$G$420,donnees!$D$2:$D$420,nomRegions!$R50,donnees!$C$2:$C$420,nomRegions!$Q50) -> 10634.56
P51: Nord-Pas-de-Calais-Picardie51 | Q51: Nord-Pas-de-Calais-Picardie | R51: Yaourt | S51: =SUMIFS(donnees!$E$2:$E$420,donnees!$D$2:$D$420,nomRegions!$R51,donnees!$C$2:$C$420,nomRegions!$Q51) -> 8019 | T51: =SUMIFS(donnees!$G$2:$G$420,donnees!$D$2:$D$420,nomRegions!$R51,donnees!$C$2:$C$420,nomRegions!$Q51) -> 10710
P52: Normandie52 | Q52: Normandie | R52: Fromage | S52: =SUMIFS(donnees!$E$2:$E$420,donnees!$D$2:$D$420,nomRegions!$R52,donnees!$C$2:$C$420,nomRegions!$Q52) -> 10758 | T52: =SUMIFS(donnees!$G$2:$G$420,donnees!$D$2:$D$420,nomRegions!$R52,donnees!$C$2:$C$420,nomRegions!$Q52) -> 12278.4
P53: Normandie53 | Q53: Normandie | R53: Lait | S53: =SUMIFS(donnees!$E$2:$E$420,donnees!$D$2:$D$420,nomRegions!$R53,donnees!$C$2:$C$420,nomRegions!$Q53) -> 32082 | T53: =SUMIFS(donnees!$G$2:$G$420,donnees!$D$2:$D$420,nomRegions!$R53,donnees!$C$2:$C$420,nomRegions!$Q53) -> 20472
P54: Normandie54 | Q54: Normandie | R54: Riz | S54: =SUMIFS(donnees!$E$2:$E$420,donnees!$D$2:$D$420,nomRegions!$R54,donnees!$C$2:$C$420,nomRegions!$Q54) -> 23340 | T54: =SUMIFS(donnees!$G$2:$G$420,donnees!$D$2:$D$420,nomRegions!$R54,donnees!$C$2:$C$420,nomRegions!$Q54) -> 22515
P55: Normandie55 | Q55: Normandie | R55: Sucre | S55: =SUMIFS(donnees!$E$2:$E$420,donnees!$D$2:$D$420,nomRegions!$R55,donnees!$C$2:$C$420,nomRegions!$Q55) -> 14865.3 | T55: =SUMIFS(donnees!$G$2:$G$420,donnees!$D$2:$D$420,nomRegions!$R55,donnees!$C$2:$C$420,nomRegions!$Q55) -> 14610.58
P56: Normandie56 | Q56: Normandie | R56: Yaourt | S56: =SUMIFS(donnees!$E$2:$E$420,donnees!$D$2:$D$420,nomRegions!$R56,donnees!$C$2:$C$420,nomRegions!$Q56) -> 13008 | T56: =SUMIFS(donnees!$G$2:$G$420,donnees!$D$2:$D$420,nomRegions!$R56,donnees!$C$2:$C$420,nomRegions!$Q56) -> 14197.5
P57: Pays de la Loire57 | Q57: Pays de la Loire | R57: Fromage | S57: =SUMIFS(donnees!$E$2:$E$420,donnees!$D$2:$D$420,nomRegions!$R57,donnees!$C$2:$C$420,nomRegions!$Q57) -> 16788.2 | T57: =SUMIFS(donnees!$G$2:$G$420,donnees!$D$2:$D$420,nomRegions!$R57,donnees!$C$2:$C$420,nomRegions!$Q57) -> 18532.8
P58: Pays de la Loire58 | Q58: Pays de la Loire | R58: Lait | S58: =SUMIFS(donnees!$E$2:$E$420,donnees!$D$2:$D$420,nomRegions!$R58,donnees!$C$2:$C$420,nomRegions!$Q58) -> 22776 | T58: =SUMIFS(donnees!$G$2:$G$420,donnees!$D$2:$D$420,nomRegions!$R58,donnees!$C$2:$C$420,nomRegions!$Q58) -> 22470
P59: Pays de la Loire59 | Q59: Pays de la Loire | R59: Riz | S59: =SUMIFS(donnees!$E$2:$E$420,donnees!$D$2:$D$420,nomRegions!$R59,donnees!$C$2:$C$420,nomRegions!$Q59) -> 34902 | T59: =SUMIFS(donnees!$G$2:$G$420,donnees!$D$2:$D$420,nomRegions!$R59,donnees!$C$2:$C$420,nomRegions!$Q59) -> 28317
P60: Pays de la Loire60 | Q60: Pays de la Loire | R60: Sucre | S60: =SUMIFS(donnees!$E$2:$E$420,donnees!$D$2:$D$420,nomRegions!$R60,donnees!$C$2:$C$420,nomRegions!$Q60) -> 10383.82 | T60: =SUMIFS(donnees!$G$2:$G$420,donnees!$D$2:$D$420,nomRegions!$R60,donnees!$C$2:$C$420,nomRegions!$Q60) -> 16449.34
P61: Pays de la Loire61 | Q61: Pays de la Loire | R61: Yaourt | S61: =SUMIFS(donnees!$E$2:$E$420,donnees!$D$2:$D$420,nomRegions!$R61,donnees!$C$2:$C$420,nomRegions!$Q61) -> 10185 | T61: =SUMIFS(donnees!$G$2:$G$420,donnees!$D$2:$D$420,nomRegions!$R61,donnees!$C$2:$C$420,nomRegions!$Q61) -> 12445.5
P62: Provence-Alpes-Côte d'Azur62 | Q62: Provence-Alpes-Côte d'Azur | R62: Fromage | S62: =SUMIFS(donnees!$E$2:$E$420,donnees!$D$2:$D$420,nomRegions!$R62,donnees!$C$2:$C$420,nomRegions!$Q62) -> 26932.4 | T62: =SUMIFS(donnees!$G$2:$G$420,donnees!$D$2:$D$420,nomRegions!$R62,donnees!$C$2:$C$420,nomRegions!$Q62) -> 19208.2
P63: Provence-Alpes-Côte d'Azur63 | Q63: Provence-Alpes-Côte d'Azur | R63: Lait | S63: =SUMIFS(donnees!$E$2:$E$420,donnees!$D$2:$D$420,nomRegions!$R63,donnees!$C$2:$C$420,nomRegions!$Q63) -> 22164 | T63: =SUMIFS(donnees!$G$2:$G$420,donnees!$D$2:$D$420,nomRegions!$R63,donnees!$C$2:$C$420,nomRegions!$Q63) -> 28188
P64: Provence-Alpes-Côte d'Azur64 | Q64: Provence-Alpes-Côte d'Azur | R64: Riz | S64: =SUMIFS(donnees!$E$2:$E$420,donnees!$D$2:$D$420,nomRegions!$R64,donnees!$C$2:$C$420,nomRegions!$Q64) -> 28476 | T64: =SUMIFS(donnees!$G$2:$G$420,donnees!$D$2:$D$420,nomRegions!$R64,donnees!$C$2:$C$420,nomRegions!$Q64) -> 24720
P65: Provence-Alpes-Côte d'Azur65 | Q65: Provence-Alpes-Côte d'Azur | R65: Sucre | S65: =SUMIFS(donnees!$E$2:$E$420,donnees!$D$2:$D$420,nomRegions!$R65,donnees!$C$2:$C$420,nomRegions!$Q65) -> 15579.71 | T65: =SUMIFS(donnees!$G$2:$G$420,donnees!$D$2:$D$420,nomRegions!$R65,donnees!$C$2:$C$420,nomRegions!$Q65) -> 11908.16
P66: Provence-Alpes-Côte d'Azur66 | Q66: Provence-Alpes-Côte d'Azur | R66: Yaourt | S66: =SUMIFS(donnees!$E$2:$E$420,donnees!$D$2:$D$420,nomRegions!$R66,donnees!$C$2:$C$420,nomRegions!$Q66) -> 10732.5 | T66: =SUMIFS(donnees!$G$2:$G$420,donnees!$D$2:$D$420,nomRegions!$R66,donnees!$C$2:$C$420,nomRegions!$Q66) -> 16534.5

Sheet nomDept (hidden)
A1: numDept | B1: nomDept | C1: Cibles | D1: Résultat | G1: numDept | Q1: nomDept | R1: nomProd | S1: 2014 | T1: 2015
A2: 1 | B2: Ain | C2: =SUMIF(donnees!$B$2:$B$420,$B2,donnees!$F$2:$F$420) -> 30,391.30 $ | D2: =SUMIF(donnees!$B$2:$B$420,$B2,donnees!$G$2:$G$420) -> 22,634.74 $ | E2: =VLOOKUP(D2/C2,classeReg,4,1) -> classe0 | F2: =D2/C2 -> 0.7447769592 | G2: 1 | H2: =B2&" ("&G2&")" -> Ain (1) | I2: txtHexagone | P2: =Q2&ROW() -> Ain2 | Q2: Ain | R2: Fromage | S2: =donnees!E2 -> 2,730 $ | T2: =donnees!G2 -> 4,928 $
A3: 2 | B3: Aisne | C3: =SUMIF(donnees!$B$2:$B$420,$B3,donnees!$F$2:$F$420) -> 17,845.18 $ | D3: =SUMIF(donnees!$B$2:$B$420,$B3,donnees!$G$2:$G$420) -> 12,222.50 $ | E3: classe0 | F3: =D3/C3 -> 0.6849188408 | G3: 2 | H3: =B3&" ("&G3&")" -> Aisne (2) | P3: =Q3&ROW() -> Ain3 | Q3: Ain | R3: Lait | S3: =donnees!E3 -> 4,743 $ | T3: =donnees!G3 -> 3,996 $
A4: 3 | B4: Allier | C4: =SUMIF(donnees!$B$2:$B$420,$B4,donnees!$F$2:$F$420) -> 29,301.85 $ | D4: =SUMIF(donnees!$B$2:$B$420,$B4,donnees!$G$2:$G$420) -> 21,360.24 $ | E4: classe0 | F4: 0.7289724028 | G4: 3 | H4: Allier (3) | P4: Ain4 | Q4: Ain | R4: Sucre | S4: =donnees!E4 -> 7,960 $ | T4: =donnees!G4 -> 4,231 $
A5: 4 | B5: Alpes-de-Haute-Provence | C5: =SUMIF(donnees!$B$2:$B$420,$B5,donnees!$F$2:$F$420) -> 25,660.54 $ | D5: =SUMIF(donnees!$B$2:$B$420,$B5,donnees!$G$2:$G$420) -> 13,672.30 $ | E5: classe0 | F5: 0.5328141964 | G5: 4 | H5: Alpes-de-Haute-Provence (4) | P5: Ain5 | Q5: Ain | R5: Riz | S5: =donnees!E5 -> 6,294 $ | T5: =donnees!G5 -> 6,750 $
A6: 5 | B6: Hautes-Alpes | C6: =SUMIF(donnees!$B$2:$B$420,$B6,donnees!$F$2:$F$420) -> 9,114.00 $ | D6: =SUMIF(donnees!$B$2:$B$420,$B6,donnees!$G$2:$G$420) -> 14,565.00 $ | E6: classe3 | F6: 1.598090849 | G6: 5 | H6: Hautes-Alpes (5) | J6: =IFERROR(VLOOKUP(idDept,$A$2:$B$97,2,0),"") ->  | P6: Ain6 | Q6: Ain | R6: Yaourt | S6: =donnees!E6 -> 3,602 $ | T6: =donnees!G6 -> 2,730 $
A7: 6 | B7: Alpes-Maritimes | C7: =SUMIF(donnees!$B$2:$B$420,$B7,donnees!$F$2:$F$420) -> 23,161.90 $ | D7: =SUMIF(donnees!$B$2:$B$420,$B7,donnees!$G$2:$G$420) -> 13,846.22 $ | E7: classe0 | F7: 0.597801562 | G7: 6 | H7: Alpes-Maritimes (6) | K7: nomDept | L7: nomProd | M7: 2014 | N7: 2015 | P7: Aisne7 | Q7: Aisne | R7: Riz | S7: =donnees!E7 -> 7,086 $ | T7: =donnees!G7 -> 4,116 $
A8: 7 | B8: Ardèche | C8: =SUMIF(donnees!$B$2:$B$420,$B8,donnees!$F$2:$F$420) -> 18,555.24 $ | D8: =SUMIF(donnees!$B$2:$B$420,$B8,donnees!$G$2:$G$420) -> 22,981.60 $ | E8: classe3 | F8: 1.238550404 | G8: 7 | H8: Ardèche (7) | K8: =IFERROR($J$6& MATCH($J$6,$Q:$Q,0),"") ->  | L8: =IFERROR(VLOOKUP($K8,detailsDept,COLUMN(S1)-COLUMN($P$1),0),"") ->  | P8: =Q8&ROW() -> Aisne8 | Q8: Aisne | R8: Fromage | S8: =donnees!E8 -> 2,416 $ | T8: =donnees!G8 -> 2,499 $
A9: 8 | B9: Ardennes | C9: =SUMIF(donnees!$B$2:$B$420,$B9,donnees!$F$2:$F$420) -> 29,108.60 $ | D9: =SUMIF(donnees!$B$2:$B$420,$B9,donnees!$G$2:$G$420) -> 12,933.70 $ | E9: classe0 | F9: 0.4443257319 | G9: 8 | H9: Ardennes (8) | K9: =IFERROR($J$6& MATCH($J$6,$Q:$Q,0)+ROW(O1),"") ->  | P9: =Q9&ROW() -> Aisne9 | Q9: Aisne | R9: Sucre | S9: =donnees!E9 -> 5,013 $ | T9: =donnees!G9 -> 3,224 $
A10: 9 | B10: Ariège | C10: =SUMIF(donnees!$B$2:$B$420,$B10,donnees!$F$2:$F$420) -> 21,028.50 $ | D10: =SUMIF(donnees!$B$2:$B$420,$B10,donnees!$G$2:$G$420) -> 19,168.76 $ | E10: classe2 | F10: 0.9115609768 | G10: 9 | H10: Ariège (9) | K10: =IFERROR($J$6& MATCH($J$6,$Q:$Q,0)+ROW(O2),"") ->  | P10: Aisne10 | Q10: Aisne | R10: Yaourt | S10: =donnees!E10 -> 360 $ | T10: =donnees!G10 -> 2,384 $
A11: 10 | B11: Aube | C11: =SUMIF(donnees!$B$2:$B$420,$B11,donnees!$F$2:$F$420) -> 34,731.62 $ | D11: =SUMIF(donnees!$B$2:$B$420,$B11,donnees!$G$2:$G$420) -> 21,372.43 $ | E11: classe0 | F11: 0.6153594333 | G11: 10 | H11: Aube (10) | P11: Allier11 | Q11: Allier | R11: Sucre | S11: =donnees!E11 -> 2,911 $ | T11: =donnees!G11 -> 2,221 $
A12: 11 | B12: Aude | C12: =SUMIF(donnees!$B$2:$B$420,$B12,donnees!$F$2:$F$420) -> 21,175.29 $ | D12: =SUMIF(donnees!$B$2:$B$420,$B12,donnees!$G$2:$G$420) -> 16,111.27 $ | E12: classe1 | F12: 0.7608523897 | G12: 11 | H12: Aude (11) | P12: Allier12 | Q12: Allier | R12: Fromage | S12: =donnees!E12 -> 4,138 $ | T12: =donnees!G12 -> 5,570 $
A13: 12 | B13: Aveyron | C13: =SUMIF(donnees!$B$2:$B$420,$B13,donnees!$F$2:$F$420) -> 10,753.18 $ | D13: =SUMIF(donnees!$B$2:$B$420,$B13,donnees!$G$2:$G$420) -> 8,645.52 $ | E13: classe1 | F13: 0.8039965852 | G13: 12 | H13: Aveyron (12) | L13: total | M13: =SUM(M8:M12) -> 0 | N13: =SUM(N8:N12) -> 0 | P13: Allier13 | Q13: Allier | R13: Yaourt | S13: =donnees!E13 -> 561 $ | T13: =donnees!G13 -> 3,267 $
A14: 13 | B14: Bouches-du-Rhône | C14: =SUMIF(donnees!$B$2:$B$420,$B14,donnees!$F$2:$F$420) -> 37,246.00 $ | D14: =SUMIF(donnees!$B$2:$B$420,$B14,donnees!$G$2:$G$420) -> 19,259.23 $ | E14: classe0 | F14: 0.5170818343 | G14: 13 | H14: Bouches-du-Rhône (13) | J14: =IF(actDept="","",actDept &": Répartion du CA en " &N7) ->  | N14: =IFERROR(VLOOKUP(actDept,$B$2:$C$97,2,0),"") ->  | P14: Allier14 | Q14: Allier | R14: Lait | S14: =donnees!E14 -> 8,595 $ | T14: =donnees!G14 -> 4,230 $
A15: 14 | B15: Calvados | C15: =SUMIF(donnees!$B$2:$B$420,$B15,donnees!$F$2:$F$420) -> 15,861.00 $ | D15: =SUMIF(donnees!$B$2:$B$420,$B15,donnees!$G$2:$G$420) -> 16,418.00 $ | E15: classe3 | F15: 1.035117584 | G15: 14 | H15: Calvados (14) | J15: =IF(actDept="","",actDept &": comparaison du CA") ->  | P15: Allier15 | Q15: Allier | R15: Riz | S15: =donnees!E15 -> 8,217 $ | T15: =donnees!G15 -> 6,072 $
A16: 15 | B16: Cantal | C16: =SUMIF(donnees!$B$2:$B$420,$B16,donnees!$F$2:$F$420) -> 21,293.80 $ | D16: =SUMIF(donnees!$B$2:$B$420,$B16,donnees!$G$2:$G$420) -> 12,619.80 $ | E16: classe0 | F16: 0.5926513821 | G16: 15 | H16: Cantal (15) | P16: Alpes-de-Haute-Provence16 | Q16: Alpes-de-Haute-Provence | R16: Riz | S16: =donnees!E16 -> 7,941 $ | T16: =donnees!G16 -> 4,590 $
A17: 16 | B17: Charente | C17: =SUMIF(donnees!$B$2:$B$420,$B17,donnees!$F$2:$F$420) -> 19,121.19 $ | D17: =SUMIF(donnees!$B$2:$B$420,$B17,donnees!$G$2:$G$420) -> 18,915.67 $ | E17: classe2 | F17: 0.989251715 | G17: 16 | H17: Charente (16) | P17: Alpes-de-Haute-Provence17 | Q17: Alpes-de-Haute-Provence | R17: Lait | S17: =donnees!E17 -> 6,306 $ | T17: =donnees!G17 -> 3,003 $
A18: 17 | B18: Charente-Maritime | C18: =SUMIF(donnees!$B$2:$B$420,$B18,donnees!$F$2:$F$420) -> 35,926.24 $ | D18: =SUMIF(donnees!$B$2:$B$420,$B18,donnees!$G$2:$G$420) -> 15,619.07 $ | E18: classe0 | F18: 0.4347538178 | G18: 17 | H18: Charente-Maritime (17) | J18: =actDept & " (" & VLOOKUP(actDept,$B$2:$G$97,6,0)&")" ->  | P18: Alpes-de-Haute-Provence18 | Q18: Alpes-de-Haute-Provence | R18: Sucre | S18: =donnees!E18 -> 1,636 $ | T18: =donnees!G18 -> 1,891 $
A19: 18 | B19: Cher | C19: =SUMIF(donnees!$B$2:$B$420,$B19,donnees!$F$2:$F$420) -> 24,030.18 $ | D19: =SUMIF(donnees!$B$2:$B$420,$B19,donnees!$G$2:$G$420) -> 18,548.53 $ | E19: classe1 | F19: 0.7718847716 | G19: 18 | H19: Cher (18) | P19: Alpes-de-Haute-Provence19 | Q19: Alpes-de-Haute-Provence | R19: Fromage | S19: =donnees!E19 -> 5,504 $ | T19: =donnees!G19 -> 4,189 $
A20: 19 | B20: Corrèze | C20: =SUMIF(donnees!$B$2:$B$420,$B20,donnees!$F$2:$F$420) -> 23,553.17 $ | D20: =SUMIF(donnees!$B$2:$B$420,$B20,donnees!$G$2:$G$420) -> 17,349.68 $ | E20: classe0 | F20: 0.7366176188 | G20: 19 | H20: Corrèze (19) | P20: Alpes-Maritimes20 | Q20: Alpes-Maritimes | R20: Fromage | S20: =donnees!E20 -> 5,091 $ | T20: =donnees!G20 -> 2,182 $
A21: 2A | B21: Corse-du-Sud | C21: =SUMIF(donnees!$B$2:$B$420,$B21,donnees!$F$2:$F$420) -> 11,702.89 $ | D21: =SUMIF(donnees!$B$2:$B$420,$B21,donnees!$G$2:$G$420) -> 8,722.84 $ | E21: classe0 | F21: 0.7453577706 | G21: 2A | H21: Corse-du-Sud (2A) | P21: Alpes-Maritimes21 | Q21: Alpes-Maritimes | R21: Sucre | S21: =donnees!E21 -> 5,771 $ | T21: =donnees!G21 -> 2,424 $
A22: 2B | B22: Haute-Corse | C22: =SUMIF(donnees!$B$2:$B$420,$B22,donnees!$F$2:$F$420) -> 29,554.94 $ | D22: =SUMIF(donnees!$B$2:$B$420,$B22,donnees!$G$2:$G$420) -> 16,040.73 $ | E22: classe0 | F22: 0.5427427699 | G22: 2B | H22: Haute-Corse (2B) | P22: Alpes-Maritimes22 | Q22: Alpes-Maritimes | R22: Riz | S22: =donnees!E22 -> 4,755 $ | T22: =donnees!G22 -> 5,484 $
A23: 21 | B23: Côte-d'Or | C23: =SUMIF(donnees!$B$2:$B$420,$B23,donnees!$F$2:$F$420) -> 30,144.07 $ | D23: =SUMIF(donnees!$B$2:$B$420,$B23,donnees!$G$2:$G$420) -> 16,608.22 $ | E23: classe0 | F23: 0.5509614329 | G23: 21 | H23: Côte-d'Or (21) | P23: Alpes-Maritimes23 | Q23: Alpes-Maritimes | R23: Yaourt | S23: =donnees!E23 -> 3,687 $ | T23: =donnees!G23 -> 3,756 $
A24: 22 | B24: Côtes-d'Armor | C24: =SUMIF(donnees!$B$2:$B$420,$B24,donnees!$F$2:$F$420) -> 9,667.04 $ | D24: =SUMIF(donnees!$B$2:$B$420,$B24,donnees!$G$2:$G$420) -> 7,865.87 $ | E24: classe1 | F24: 0.8136792648 | G24: 22 | H24: Côtes-d'Armor (22) | P24: Ardèche24 | Q24: Ardèche | R24: Yaourt | S24: =donnees!E24 -> 1,217 $ | T24: =donnees!G24 -> 2,409 $
A25: 23 | B25: Creuse | C25: =SUMIF(donnees!$B$2:$B$420,$B25,donnees!$F$2:$F$420) -> 22,589.80 $ | D25: =SUMIF(donnees!$B$2:$B$420,$B25,donnees!$G$2:$G$420) -> 17,807.69 $ | E25: classe1 | F25: 0.7883066694 | G25: 23 | H25: Creuse (23) | P25: Ardèche25 | Q25: Ardèche | R25: Fromage | S25: =donnees!E25 -> 1,742 $ | T25: =donnees!G25 -> 5,441 $
A26: 24 | B26: Dordogne | C26: =SUMIF(donnees!$B$2:$B$420,$B26,donnees!$F$2:$F$420) -> 10,664.74 $ | D26: =SUMIF(donnees!$B$2:$B$420,$B26,donnees!$G$2:$G$420) -> 17,039.13 $ | E26: classe3 | F26: 1.597707023 | G26: 24 | H26: Dordogne (24) | P26: Ardèche26 | Q26: Ardèche | R26: Lait | S26: =donnees!E26 -> 900 $ | T26: =donnees!G26 -> 6,264 $
A27: 25 | B27: Doubs | C27: =SUMIF(donnees!$B$2:$B$420,$B27,donnees!$F$2:$F$420) -> 12,076.75 $ | D27: =SUMIF(donnees!$B$2:$B$420,$B27,donnees!$G$2:$G$420) -> 12,669.67 $ | E27: classe3 | F27: 1.04909599 | G27: 25 | H27: Doubs (25) | P27: Ardèche27 | Q27: Ardèche | R27: Riz | S27: =donnees!E27 -> 5,262 $ | T27: =donnees!G27 -> 7,077 $
A28: 26 | B28: Drôme | C28: =SUMIF(donnees!$B$2:$B$420,$B28,donnees!$F$2:$F$420) -> 10,825.09 $ | D28: =SUMIF(donnees!$B$2:$B$420,$B28,donnees!$G$2:$G$420) -> 23,044.85 $ | E28: classe3 | F28: 2.128836804 | G28: 26 | H28: Drôme (26) | P28: Ardèche28 | Q28: Ardèche | R28: Sucre | S28: =donnees!E28 -> 6,346 $ | T28: =donnees!G28 -> 1,791 $
A29: 27 | B29: Eure | C29: =SUMIF(donnees!$B$2:$B$420,$B29,donnees!$F$2:$F$420) -> 23,412.21 $ | D29: =SUMIF(donnees!$B$2:$B$420,$B29,donnees!$G$2:$G$420) -> 13,070.49 $ | E29: classe0 | F29: 0.5582766428 | G29: 27 | H29: Eure (27) | P29: Ardennes29 | Q29: Ardennes | R29: Riz | S29: =donnees!E29 -> 9,975 $ | T29: =donnees!G29 -> 3,048 $
A30: 28 | B30: Eure-et-Loir | C30: =SUMIF(donnees!$B$2:$B$420,$B30,donnees!$F$2:$F$420) -> 24,923.11 $ | D30: =SUMIF(donnees!$B$2:$B$420,$B30,donnees!$G$2:$G$420) -> 20,198.23 $ | E30: classe1 | F30: 0.8104217331 | G30: 28 | H30: Eure-et-Loir (28) | P30: Ardennes30 | Q30: Ardennes | R30: Fromage | S30: =donnees!E30 -> 3,920 $ | T30: =donnees!G30 -> 3,269 $
A31: 29 | B31: Finistère | C31: =SUMIF(donnees!$B$2:$B$420,$B31,donnees!$F$2:$F$420) -> 9,661.20 $ | D31: =SUMIF(donnees!$B$2:$B$420,$B31,donnees!$G$2:$G$420) -> 18,594.40 $ | E31: classe3 | F31: 1.924647042 | G31: 29 | H31: Finistère (29) | P31: Ardennes31 | Q31: Ardennes | R31: Yaourt | S31: =donnees!E31 -> 3,929 $ | T31: =donnees!G31 -> 1,781 $
A32: 30 | B32: Gard | C32: =SUMIF(donnees!$B$2:$B$420,$B32,donnees!$F$2:$F$420) -> 19,821.02 $ | D32: =SUMIF(donnees!$B$2:$B$420,$B32,donnees!$G$2:$G$420) -> 22,430.35 $ | E32: classe3 | F32: 1.131644587 | G32: 30 | H32: Gard (30) | P32: Ardennes32 | Q32: Ardennes | R32: Lait | S32: =donnees!E32 -> 6,435 $ | T32: =donnees!G32 -> 4,836 $
A33: 31 | B33: Haute-Garonne | C33: =SUMIF(donnees!$B$2:$B$420,$B33,donnees!$F$2:$F$420) -> 11,307.68 $ | D33: =SUMIF(donnees!$B$2:$B$420,$B33,donnees!$G$2:$G$420) -> 20,161.39 $ | E33: classe3 | F33: 1.782982009 | G33: 31 | H33: Haute-Garonne (31) | P33: Ariège33 | Q33: Ariège | R33: Riz | S33: =donnees!E33 -> 6,081 $ | T33: =donnees!G33 -> 4,518 $
A34: 32 | B34: Gers | C34: =SUMIF(donnees!$B$2:$B$420,$B34,donnees!$F$2:$F$420) -> 27,272.34 $ | D34: =SUMIF(donnees!$B$2:$B$420,$B34,donnees!$G$2:$G$420) -> 20,657.48 $ | E34: classe1 | F34: 0.7574516891 | G34: 32 | H34: Gers (32) | P34: Ariège34 | Q34: Ariège | R34: Lait | S34: =donnees!E34 -> 7,461 $ | T34: =donnees!G34 -> 3,294 $
A35: 33 | B35: Gironde | C35: =SUMIF(donnees!$B$2:$B$420,$B35,donnees!$F$2:$F$420) -> 22,715.18 $ | D35: =SUMIF(donnees!$B$2:$B$420,$B35,donnees!$G$2:$G$420) -> 15,538.62 $ | E35: classe0 | F35: 0.6840632564 | G35: 33 | H35: Gironde (33) | P35: Ariège35 | Q35: Ariège | R35: Sucre | S35: =donnees!E35 -> 466 $ | T35: =donnees!G35 -> 2,495 $
A36: 34 | B36: Hérault | C36: =SUMIF(donnees!$B$2:$B$420,$B36,donnees!$F$2:$F$420) -> 27,691.80 $ | D36: =SUMIF(donnees!$B$2:$B$420,$B36,donnees!$G$2:$G$420) -> 17,843.67 $ | E36: classe0 | F36: 0.6443665634 | G36: 34 | H36: Hérault (34) | P36: Ariège36 | Q36: Ariège | R36: Yaourt | S36: =donnees!E36 -> 1,130 $ | T36: =donnees!G36 -> 3,947 $
A37: 35 | B37: Ille-et-Vilaine | C37: =SUMIF(donnees!$B$2:$B$420,$B37,donnees!$F$2:$F$420) -> 21,636.29 $ | D37: =SUMIF(donnees!$B$2:$B$420,$B37,donnees!$G$2:$G$420) -> 20,445.63 $ | E37: classe2 | F37: 0.9449693085 | G37: 35 | H37: Ille-et-Vilaine (35) | P37: Ariège37 | Q37: Ariège | R37: Fromage | S37: =donnees!E37 -> 2,391 $ | T37: =donnees!G37 -> 4,915 $
A38: 36 | B38: Indre | C38: =SUMIF(donnees!$B$2:$B$420,$B38,donnees!$F$2:$F$420) -> 22,100.00 $ | D38: =SUMIF(donnees!$B$2:$B$420,$B38,donnees!$G$2:$G$420) -> 20,162.23 $ | E38: classe2 | F38: 0.9123180995 | G38: 36 | H38: Indre (36) | P38: Aube38 | Q38: Aube | R38: Lait | S38: =donnees!E38 -> 11,343 $ | T38: =donnees!G38 -> 3,255 $
A39: 37 | B39: Indre-et-Loire | C39: =SUMIF(donnees!$B$2:$B$420,$B39,donnees!$F$2:$F$420) -> 6,110.37 $ | D39: =SUMIF(donnees!$B$2:$B$420,$B39,donnees!$G$2:$G$420) -> 11,496.80 $ | E39: classe3 | F39: 1.881522723 | G39: 37 | H39: Indre-et-Loire (37) | P39: Aube39 | Q39: Aube | R39: Yaourt | S39: =donnees!E39 -> 4,311 $ | T39: =donnees!G39 -> 2,417 $
A40: 38 | B40: Isère | C40: =SUMIF(donnees!$B$2:$B$420,$B40,donnees!$F$2:$F$420) -> 17,590.21 $ | D40: =SUMIF(donnees!$B$2:$B$420,$B40,donnees!$G$2:$G$420) -> 20,124.72 $ | E40: classe3 | F40: 1.144086398 | G40: 38 | H40: Isère (38) | P40: Aube40 | Q40: Aube | R40: Riz | S40: =donnees!E40 -> 9,327 $ | T40: =donnees!G40 -> 7,704 $
A41: 39 | B41: Jura | C41: =SUMIF(donnees!$B$2:$B$420,$B41,donnees!$F$2:$F$420) -> 17,919.49 $ | D41: =SUMIF(donnees!$B$2:$B$420,$B41,donnees!$G$2:$G$420) -> 18,599.64 $ | E41: classe3 | F41: 1.037955879 | G41: 39 | H41: Jura (39) | P41: Aube41 | Q41: Aube | R41: Fromage | S41: =donnees!E41 -> 2,211 $ | T41: =donnees!G41 -> 3,326 $
A42: 40 | B42: Landes | C42: =SUMIF(donnees!$B$2:$B$420,$B42,donnees!$F$2:$F$420) -> 25,394.73 $ | D42: =SUMIF(donnees!$B$2:$B$420,$B42,donnees!$G$2:$G$420) -> 17,645.84 $ | E42: classe0 | F42: 0.6948622805 | G42: 40 | H42: Landes (40) | P42: Aube42 | Q42: Aube | R42: Sucre | S42: =donnees!E42 -> 1,755 $ | T42: =donnees!G42 -> 4,671 $
A43: 41 | B43: Loir-et-Cher | C43: =SUMIF(donnees!$B$2:$B$420,$B43,donnees!$F$2:$F$420) -> 29,545.24 $ | D43: =SUMIF(donnees!$B$2:$B$420,$B43,donnees!$G$2:$G$420) -> 10,230.83 $ | E43: classe0 | F43: 0.3462767607 | G43: 41 | H43: Loir-et-Cher (41) | P43: Aude43 | Q43: Aude | R43: Fromage | S43: =donnees!E43 -> 6,472 $ | T43: =donnees!G43 -> 2,086 $
A44: 42 | B44: Loire | C44: =SUMIF(donnees!$B$2:$B$420,$B44,donnees!$F$2:$F$420) -> 21,614.02 $ | D44: =SUMIF(donnees!$B$2:$B$420,$B44,donnees!$G$2:$G$420) -> 21,936.62 $ | E44: classe3 | F44: 1.014925497 | G44: 42 | H44: Loire (42) | P44: Aude44 | Q44: Aude | R44: Sucre | S44: =donnees!E44 -> 4,927 $ | T44: =donnees!G44 -> 2,653 $
A45: 43 | B45: Haute-Loire | C45: =SUMIF(donnees!$B$2:$B$420,$B45,donnees!$F$2:$F$420) -> 23,878.05 $ | D45: =SUMIF(donnees!$B$2:$B$420,$B45,donnees!$G$2:$G$420) -> 23,993.12 $ | E45: classe2 | F45: 1.00481907 | G45: 43 | H45: Haute-Loire (43) | P45: Aude45 | Q45: Aude | R45: Yaourt | S45: =donnees!E45 -> 1,439 $ | T45: =donnees!G45 -> 3,984 $
A46: 44 | B46: Loire-Atlantique | C46: =SUMIF(donnees!$B$2:$B$420,$B46,donnees!$F$2:$F$420) -> 10,822.17 $ | D46: =SUMIF(donnees!$B$2:$B$420,$B46,donnees!$G$2:$G$420) -> 20,567.10 $ | E46: classe3 | F46: 1.900459889 | G46: 44 | H46: Loire-Atlantique (44) | P46: Aude46 | Q46: Aude | R46: Riz | S46: =donnees!E46 -> 4,812 $ | T46: =donnees!G46 -> 7,389 $
A47: 45 | B47: Loiret | C47: =SUMIF(donnees!$B$2:$B$420,$B47,donnees!$F$2:$F$420) -> 15,723.50 $ | D47: =SUMIF(donnees!$B$2:$B$420,$B47,donnees!$G$2:$G$420) -> 19,776.64 $ | E47: classe3 | F47: 1.25777594 | G47: 45 | H47: Loiret (45) | P47: Aveyron47 | Q47: Aveyron | R47: Sucre | S47: =donnees!E47 -> 3,652 $ | T47: =donnees!G47 -> 4,633 $
A48: 46 | B48: Lot | C48: =SUMIF(donnees!$B$2:$B$420,$B48,donnees!$F$2:$F$420) -> 23,079.23 $ | D48: =SUMIF(donnees!$B$2:$B$420,$B48,donnees!$G$2:$G$420) -> 21,007.41 $ | E48: classe2 | F48: 0.9102301073 | G48: 46 | H48: Lot (46) | P48: Aveyron48 | Q48: Aveyron | R48: Fromage | S48: =donnees!E48 -> 5,311 $ | T48: =donnees!G48 -> 4,013 $
A49: 47 | B49: Lot-et-Garonne | C49: =SUMIF(donnees!$B$2:$B$420,$B49,donnees!$F$2:$F$420) -> 13,082.48 $ | D49: =SUMIF(donnees!$B$2:$B$420,$B49,donnees!$G$2:$G$420) -> 13,957.05 $ | E49: classe3 | F49: 1.066850475 | G49: 47 | H49: Lot-et-Garonne (47) | P49: Bas-Rhin49 | Q49: Bas-Rhin | R49: Riz | S49: =donnees!E49 -> 6,132 $ | T49: =donnees!G49 -> 7,110 $
A50: 48 | B50: Lozère | C50: =SUMIF(donnees!$B$2:$B$420,$B50,donnees!$F$2:$F$420) -> 12,488.00 $ | D50: =SUMIF(donnees!$B$2:$B$420,$B50,donnees!$G$2:$G$420) -> 19,902.30 $ | E50: classe3 | F50: 1.593713965 | G50: 48 | H50: Lozère (48) | P50: Bas-Rhin50 | Q50: Bas-Rhin | R50: Lait | S50: =donnees!E50 -> 5,241 $ | T50: =donnees!G50 -> 5,346 $
A51: 49 | B51: Maine-et-Loire | C51: =SUMIF(donnees!$B$2:$B$420,$B51,donnees!$F$2:$F$420) -> 30,277.17 $ | D51: =SUMIF(donnees!$B$2:$B$420,$B51,donnees!$G$2:$G$420) -> 17,181.53 $ | E51: classe0 | F51: 0.5674747673 | G51: 49 | H51: Maine-et-Loire (49) | P51: Bas-Rhin51 | Q51: Bas-Rhin | R51: Fromage | S51: =donnees!E51 -> 2,946 $ | T51: =donnees!G51 -> 2,380 $
A52: 50 | B52: Manche | C52: =SUMIF(donnees!$B$2:$B$420,$B52,donnees!$F$2:$F$420) -> 21,252.55 $ | D52: =SUMIF(donnees!$B$2:$B$420,$B52,donnees!$G$2:$G$420) -> 18,399.27 $ | E52: classe2 | F52: 0.8657441107 | G52: 50 | H52: Manche (50) | P52: Bas-Rhin52 | Q52: Bas-Rhin | R52: Yaourt | S52: =donnees!E52 -> 125 $ | T52: =donnees!G52 -> 2,240 $
A53: 51 | B53: Marne | C53: =SUMIF(donnees!$B$2:$B$420,$B53,donnees!$F$2:$F$420) -> 16,547.84 $ | D53: =SUMIF(donnees!$B$2:$B$420,$B53,donnees!$G$2:$G$420) -> 23,160.05 $ | E53: classe3 | F53: 1.399581456 | G53: 51 | H53: Marne (51) | P53: Bas-Rhin53 | Q53: Bas-Rhin | R53: Sucre | S53: =donnees!E53 -> 263 $ | T53: =donnees!G53 -> 3,260 $
A54: 52 | B54: Haute-Marne | C54: =SUMIF(donnees!$B$2:$B$420,$B54,donnees!$F$2:$F$420) -> 7,692.96 $ | D54: =SUMIF(donnees!$B$2:$B$420,$B54,donnees!$G$2:$G$420) -> 24,162.77 $ | E54: classe3 | F54: 3.140893752 | G54: 52 | H54: Haute-Marne (52) | P54: Bouches-du-Rhône54 | Q54: Bouches-du-Rhône | R54: Riz | S54: =donnees!E54 -> 8,139 $ | T54: =donnees!G54 -> 4,614 $
A55: 53 | B55: Mayenne | C55: =SUMIF(donnees!$B$2:$B$420,$B55,donnees!$F$2:$F$420) -> 16,578.80 $ | D55: =SUMIF(donnees!$B$2:$B$420,$B55,donnees!$G$2:$G$420) -> 22,161.08 $ | E55: classe3 | F55: 1.336711945 | G55: 53 | H55: Mayenne (53) | P55: Bouches-du-Rhône55 | Q55: Bouches-du-Rhône | R55: Yaourt | S55: =donnees!E55 -> 2,924 $ | T55: =donnees!G55 -> 3,408 $
A56: 54 | B56: Meurthe-et-Moselle | C56: =SUMIF(donnees!$B$2:$B$420,$B56,donnees!$F$2:$F$420) -> 35,442.44 $ | D56: =SUMIF(donnees!$B$2:$B$420,$B56,donnees!$G$2:$G$420) -> 14,598.59 $ | E56: classe0 | F56: 0.4118957386 | G56: 54 | H56: Meurthe-et-Moselle (54) | P56: Bouches-du-Rhône56 | Q56: Bouches-du-Rhône | R56: Fromage | S56: =donnees!E56 -> 6,085 $ | T56: =donnees!G56 -> 2,805 $
A57: 55 | B57: Meuse | C57: =SUMIF(donnees!$B$2:$B$420,$B57,donnees!$F$2:$F$420) -> 35,040.64 $ | D57: =SUMIF(donnees!$B$2:$B$420,$B57,donnees!$G$2:$G$420) -> 20,060.58 $ | E57: classe0 | F57: 0.5724946805 | G57: 55 | H57: Meuse (55) | P57: Bouches-du-Rhône57 | Q57: Bouches-du-Rhône | R57: Lait | S57: =donnees!E57 -> 7,626 $ | T57: =donnees!G57 -> 6,090 $
A58: 56 | B58: Morbihan | C58: =SUMIF(donnees!$B$2:$B$420,$B58,donnees!$F$2:$F$420) -> 20,036.01 $ | D58: =SUMIF(donnees!$B$2:$B$420,$B58,donnees!$G$2:$G$420) -> 18,969.45 $ | E58: classe2 | F58: 0.9467678445 | G58: 56 | H58: Morbihan (56) | P58: Bouches-du-Rhône58 | Q58: Bouches-du-Rhône | R58: Sucre | S58: =donnees!E58 -> 6,269 $ | T58: =donnees!G58 -> 2,342 $
A59: 57 | B59: Moselle | C59: =SUMIF(donnees!$B$2:$B$420,$B59,donnees!$F$2:$F$420) -> 11,475.42 $ | D59: =SUMIF(donnees!$B$2:$B$420,$B59,donnees!$G$2:$G$420) -> 17,876.19 $ | E59: classe3 | F59: 1.557780892 | G59: 57 | H59: Moselle (57) | P59: Calvados59 | Q59: Calvados | R59: Lait | S59: =donnees!E59 -> 4,671 $ | T59: =donnees!G59 -> 3,213 $
A60: 58 | B60: Nièvre | C60: =SUMIF(donnees!$B$2:$B$420,$B60,donnees!$F$2:$F$420) -> 23,146.91 $ | D60: =SUMIF(donnees!$B$2:$B$420,$B60,donnees!$G$2:$G$420) -> 11,754.78 $ | E60: classe0 | F60: 0.507833659 | G60: 58 | H60: Nièvre (58) | P60: Calvados60 | Q60: Calvados | R60: Fromage | S60: =donnees!E60 -> 3,740 $ | T60: =donnees!G60 -> 2,354 $
A61: 59 | B61: Nord | C61: =SUMIF(donnees!$B$2:$B$420,$B61,donnees!$F$2:$F$420) -> 17,502.96 $ | D61: =SUMIF(donnees!$B$2:$B$420,$B61,donnees!$G$2:$G$420) -> 20,274.21 $ | E61: classe3 | F61: 1.158330362 | G61: 59 | H61: Nord (59) | P61: Calvados61 | Q61: Calvados | R61: Riz | S61: =donnees!E61 -> 4,101 $ | T61: =donnees!G61 -> 7,788 $
A62: 60 | B62: Oise | C62: =SUMIF(donnees!$B$2:$B$420,$B62,donnees!$F$2:$F$420) -> 17,182.60 $ | D62: =SUMIF(donnees!$B$2:$B$420,$B62,donnees!$G$2:$G$420) -> 15,924.30 $ | E62: classe2 | F62: 0.9267689407 | G62: 60 | H62: Oise (60) | P62: Calvados62 | Q62: Calvados | R62: Yaourt | S62: =donnees!E62 -> 708 $ | T62: =donnees!G62 -> 3,063 $
A63: 61 | B63: Orne | C63: =SUMIF(donnees!$B$2:$B$420,$B63,donnees!$F$2:$F$420) -> 32,113.08 $ | D63: =SUMIF(donnees!$B$2:$B$420,$B63,donnees!$G$2:$G$420) -> 21,742.20 $ | E63: classe0 | F63: 0.6770512203 | G63: 61 | H63: Orne (61) | P63: Cantal63 | Q63: Cantal | R63: Riz | S63: =donnees!E63 -> 5,970 $ | T63: =donnees!G63 -> 2,739 $
A64: 62 | B64: Pas-de-Calais | C64: =SUMIF(donnees!$B$2:$B$420,$B64,donnees!$F$2:$F$420) -> 8,662.21 $ | D64: =SUMIF(donnees!$B$2:$B$420,$B64,donnees!$G$2:$G$420) -> 14,471.34 $ | E64: classe3 | F64: 1.670629089 | G64: 62 | H64: Pas-de-Calais (62) | P64: Cantal64 | Q64: Cantal | R64: Fromage | S64: =donnees!E64 -> 3,309 $ | T64: =donnees!G64 -> 4,409 $
A65: 63 | B65: Puy-de-Dôme | C65: =SUMIF(donnees!$B$2:$B$420,$B65,donnees!$F$2:$F$420) -> 13,484.72 $ | D65: =SUMIF(donnees!$B$2:$B$420,$B65,donnees!$G$2:$G$420) -> 11,949.32 $ | E65: classe2 | F65: 0.8861377915 | G65: 63 | H65: Puy-de-Dôme (63) | P65: Cantal65 | Q65: Cantal | R65: Yaourt | S65: =donnees!E65 -> 4,020 $ | T65: =donnees!G65 -> 1,248 $
A66: 64 | B66: Pyrénées-Atlantiques | C66: =SUMIF(donnees!$B$2:$B$420,$B66,donnees!$F$2:$F$420) -> 13,856.85 $ | D66: =SUMIF(donnees!$B$2:$B$420,$B66,donnees!$G$2:$G$420) -> 21,279.48 $ | E66: =VLOOKUP(D66/C66,classeReg,4,1) -> classe3 | F66: 1.535665032 | G66: 64 | H66: Pyrénées-Atlantiques (64) | P66: Cantal66 | Q66: Cantal | R66: Lait | S66: =donnees!E66 -> 4,449 $ | T66: =donnees!G66 -> 4,224 $
A67: 65 | B67: Hautes-Pyrénées | C67: =SUMIF(donnees!$B$2:$B$420,$B67,donnees!$F$2:$F$420) -> 34,542.52 $ | D67: =SUMIF(donnees!$B$2:$B$420,$B67,donnees!$G$2:$G$420) -> 24,474.48 $ | E67: classe0 | F67: =D67/C67 -> 0.7085319774 | G67: 65 | H67: =B67&" ("&G67&")" -> Hautes-Pyrénées (65) | P67: Charente67 | Q67: Charente | R67: Sucre | S67: =donnees!E67 -> 285 $ | T67: =donnees!G67 -> 3,668 $
A68: 66 | B68: Pyrénées-Orientales | C68: =SUMIF(donnees!$B$2:$B$420,$B68,donnees!$F$2:$F$420) -> 14,905.70 $ | D68: =SUMIF(donnees!$B$2:$B$420,$B68,donnees!$G$2:$G$420) -> 20,256.81 $ | E68: classe3 | F68: 1.358997565 | G68: 66 | H68: Pyrénées-Orientales (66) | P68: Charente68 | Q68: Charente | R68: Fromage | S68: =donnees!E68 -> 517 $ | T68: =donnees!G68 -> 2,416 $
A69: 67 | B69: Bas-Rhin | C69: =SUMIF(donnees!$B$2:$B$420,$B69,donnees!$F$2:$F$420) -> 17,640.12 $ | D69: =SUMIF(donnees!$B$2:$B$420,$B69,donnees!$G$2:$G$420) -> 20,335.52 $ | E69: classe3 | F69: 1.152799414 | G69: 67 | H69: Bas-Rhin (67) | P69: Charente69 | Q69: Charente | R69: Yaourt | S69: =donnees!E69 -> 557 $ | T69: =donnees!G69 -> 2,813 $
A70: 68 | B70: Haut-Rhin | C70: =SUMIF(donnees!$B$2:$B$420,$B70,donnees!$F$2:$F$420) -> 22,290.08 $ | D70: =SUMIF(donnees!$B$2:$B$420,$B70,donnees!$G$2:$G$420) -> 19,105.42 $ | E70: classe2 | F70: 0.8571265783 | G70: 68 | H70: Haut-Rhin (68) | P70: Charente70 | Q70: Charente | R70: Riz | S70: =donnees!E70 -> 7,023 $ | T70: =donnees!G70 -> 7,179 $
A71: 69 | B71: Rhône | C71: =SUMIF(donnees!$B$2:$B$420,$B71,donnees!$F$2:$F$420) -> 9,299.67 $ | D71: =SUMIF(donnees!$B$2:$B$420,$B71,donnees!$G$2:$G$420) -> 16,171.37 $ | E71: classe3 | F71: 1.738918693 | G71: 69 | H71: Rhône (69) | P71: Charente71 | Q71: Charente | R71: Lait | S71: =donnees!E71 -> 7,557 $ | T71: =donnees!G71 -> 2,841 $
A72: 70 | B72: Haute-Saône | C72: =SUMIF(donnees!$B$2:$B$420,$B72,donnees!$F$2:$F$420) -> 19,725.25 $ | D72: =SUMIF(donnees!$B$2:$B$420,$B72,donnees!$G$2:$G$420) -> 10,298.36 $ | E72: classe0 | F72: 0.5220902143 | G72: 70 | H72: Haute-Saône (70) | P72: Charente-Maritime72 | Q72: Charente-Maritime | R72: Yaourt | S72: =donnees!E72 -> 941 $ | T72: =donnees!G72 -> 3,600 $
A73: 71 | B73: Saône-et-Loire | C73: =SUMIF(donnees!$B$2:$B$420,$B73,donnees!$F$2:$F$420) -> 14,203.38 $ | D73: =SUMIF(donnees!$B$2:$B$420,$B73,donnees!$G$2:$G$420) -> 18,375.34 $ | E73: classe3 | F73: 1.293730084 | G73: 71 | H73: Saône-et-Loire (71) | P73: =Q73&ROW() -> Charente-Maritime73 | Q73: Charente-Maritime | R73: Riz | S73: =donnees!E73 -> 6,153 $ | T73: =donnees!G73 -> 3,078 $
A74: 72 | B74: Sarthe | C74: =SUMIF(donnees!$B$2:$B$420,$B74,donnees!$F$2:$F$420) -> 23,064.42 $ | D74: =SUMIF(donnees!$B$2:$B$420,$B74,donnees!$G$2:$G$420) -> 23,175.64 $ | E74: classe2 | F74: 1.004822146 | G74: 72 | H74: Sarthe (72) | P74: Charente-Maritime74 | Q74: Charente-Maritime | R74: Fromage | S74: =donnees!E74 -> 6,769 $ | T74: =donnees!G74 -> 3,773 $
A75: 73 | B75: Savoie | C75: =SUMIF(donnees!$B$2:$B$420,$B75,donnees!$F$2:$F$420) -> 12,985.00 $ | D75: =SUMIF(donnees!$B$2:$B$420,$B75,donnees!$G$2:$G$420) -> 21,807.60 $ | E75: classe3 | F75: 1.679445514 | G75: 73 | H75: Savoie (73) | P75: Charente-Maritime75 | Q75: Charente-Maritime | R75: Lait | S75: =donnees!E75 -> 11,409 $ | T75: =donnees!G75 -> 3,192 $
A76: 74 | B76: Haute-Savoie | C76: =SUMIF(donnees!$B$2:$B$420,$B76,donnees!$F$2:$F$420) -> 29,818.03 $ | D76: =SUMIF(donnees!$B$2:$B$420,$B76,donnees!$G$2:$G$420) -> 18,258.46 $ | E76: classe0 | F76: 0.6123295201 | G76: 74 | H76: Haute-Savoie (74) | P76: Charente-Maritime76 | Q76: Charente-Maritime | R76: Sucre | S76: =donnees!E76 -> 4,671 $ | T76: =donnees!G76 -> 1,976 $
A77: 75 | B77: Paris | C77: =SUMIF(donnees!$B$2:$B$420,$B77,donnees!$F$2:$F$420) -> 13,934.47 $ | D77: =SUMIF(donnees!$B$2:$B$420,$B77,donnees!$G$2:$G$420) -> 14,344.56 $ | E77: classe3 | F77: 1.029429896 | G77: 75 | H77: Paris (75) | P77: Cher77 | Q77: Cher | R77: Lait | S77: =donnees!E77 -> 6,648 $ | T77: =donnees!G77 -> 3,543 $
A78: 76 | B78: Seine-Maritime | C78: =SUMIF(donnees!$B$2:$B$420,$B78,donnees!$F$2:$F$420) -> 20,003.53 $ | D78: =SUMIF(donnees!$B$2:$B$420,$B78,donnees!$G$2:$G$420) -> 14,443.52 $ | E78: classe0 | F78: 0.7220485584 | G78: 76 | H78: Seine-Maritime (76) | P78: Cher78 | Q78: Cher | R78: Fromage | S78: =donnees!E78 -> 8,331 $ | T78: =donnees!G78 -> 3,263 $
A79: 77 | B79: Seine-et-Marne | C79: =SUMIF(donnees!$B$2:$B$420,$B79,donnees!$F$2:$F$420) -> 19,480.18 $ | D79: =SUMIF(donnees!$B$2:$B$420,$B79,donnees!$G$2:$G$420) -> 8,376.92 $ | E79: classe0 | F79: 0.4300227205 | G79: 77 | H79: Seine-et-Marne (77) | P79: Cher79 | Q79: Cher | R79: Sucre | S79: =donnees!E79 -> 4,416 $ | T79: =donnees!G79 -> 5,188 $
A80: 78 | B80: Yvelines | C80: =SUMIF(donnees!$B$2:$B$420,$B80,donnees!$F$2:$F$420) -> 26,011.24 $ | D80: =SUMIF(donnees!$B$2:$B$420,$B80,donnees!$G$2:$G$420) -> 18,655.37 $ | E80: classe0 | F80: 0.7172041779 | G80: 78 | H80: Yvelines (78) | P80: Cher80 | Q80: Cher | R80: Riz | S80: =donnees!E80 -> 633 $ | T80: =donnees!G80 -> 6,555 $
A81: 79 | B81: Deux-Sèvres | C81: =SUMIF(donnees!$B$2:$B$420,$B81,donnees!$F$2:$F$420) -> 28,833.56 $ | D81: =SUMIF(donnees!$B$2:$B$420,$B81,donnees!$G$2:$G$420) -> 19,592.74 $ | E81: classe0 | F81: 0.6795116524 | G81: 79 | H81: Deux-Sèvres (79) | P81: Corrèze81 | Q81: Corrèze | R81: Sucre | S81: =donnees!E81 -> 2,211 $ | T81: =donnees!G81 -> 5,078 $
A82: 80 | B82: Somme | C82: =SUMIF(donnees!$B$2:$B$420,$B82,donnees!$F$2:$F$420) -> 18,406.14 $ | D82: =SUMIF(donnees!$B$2:$B$420,$B82,donnees!$G$2:$G$420) -> 22,674.81 $ | E82: classe3 | F82: 1.231915546 | G82: 80 | H82: Somme (80) | P82: Corrèze82 | Q82: Corrèze | R82: Lait | S82: =donnees!E82 -> 8,031 $ | T82: =donnees!G82 -> 5,856 $
A83: 81 | B83: Tarn | C83: =SUMIF(donnees!$B$2:$B$420,$B83,donnees!$F$2:$F$420) -> 19,646.64 $ | D83: =SUMIF(donnees!$B$2:$B$420,$B83,donnees!$G$2:$G$420) -> 16,492.73 $ | E83: classe1 | F83: 0.8394682246 | G83: 81 | H83: Tarn (81) | P83: Corrèze83 | Q83: Corrèze | R83: Fromage | S83: =donnees!E83 -> 7,775 $ | T83: =donnees!G83 -> 4,930 $
A84: 82 | B84: Tarn-et-Garonne | C84: =SUMIF(donnees!$B$2:$B$420,$B84,donnees!$F$2:$F$420) -> 27,072.06 $ | D84: =SUMIF(donnees!$B$2:$B$420,$B84,donnees!$G$2:$G$420) -> 16,185.56 $ | E84: classe0 | F84: 0.5978695378 | G84: 82 | H84: Tarn-et-Garonne (82) | P84: Corrèze84 | Q84: Corrèze | R84: Yaourt | S84: =donnees!E84 -> 1,614 $ | T84: =donnees!G84 -> 1,485 $
A85: 83 | B85: Var | C85: =SUMIF(donnees!$B$2:$B$420,$B85,donnees!$F$2:$F$420) -> 11,676.10 $ | D85: =SUMIF(donnees!$B$2:$B$420,$B85,donnees!$G$2:$G$420) -> 13,753.80 $ | E85: classe3 | F85: 1.17794469 | G85: 83 | H85: Var (83) | P85: Corse-du-Sud85 | Q85: Corse-du-Sud | R85: Fromage | S85: =donnees!E85 -> 3,619 $ | T85: =donnees!G85 -> 2,644 $
A86: 84 | B86: Vaucluse | C86: =SUMIF(donnees!$B$2:$B$420,$B86,donnees!$F$2:$F$420) -> 17,781.12 $ | D86: =SUMIF(donnees!$B$2:$B$420,$B86,donnees!$G$2:$G$420) -> 25,462.31 $ | E86: classe3 | F86: 1.431985724 | G86: 84 | H86: Vaucluse (84) | P86: Corse-du-Sud86 | Q86: Corse-du-Sud | R86: Riz | S86: =donnees!E86 -> 924 $ | T86: =donnees!G86 -> 3,213 $
A87: 85 | B87: Vendée | C87: =SUMIF(donnees!$B$2:$B$420,$B87,donnees!$F$2:$F$420) -> 33,276.85 $ | D87: =SUMIF(donnees!$B$2:$B$420,$B87,donnees!$G$2:$G$420) -> 15,129.29 $ | E87: classe0 | F87: 0.4546491029 | G87: 85 | H87: Vendée (85) | P87: Corse-du-Sud87 | Q87: Corse-du-Sud | R87: Sucre | S87: =donnees!E87 -> 2,639 $ | T87: =donnees!G87 -> 1,604 $
A88: 86 | B88: Vienne | C88: =SUMIF(donnees!$B$2:$B$420,$B88,donnees!$F$2:$F$420) -> 18,699.19 $ | D88: =SUMIF(donnees!$B$2:$B$420,$B88,donnees!$G$2:$G$420) -> 23,467.33 $ | E88: classe3 | F88: 1.254991794 | G88: 86 | H88: Vienne (86) | P88: Corse-du-Sud88 | Q88: Corse-du-Sud | R88: Yaourt | S88: =donnees!E88 -> 2,573 $ | T88: =donnees!G88 -> 1,262 $
A89: 87 | B89: Haute-Vienne | C89: =SUMIF(donnees!$B$2:$B$420,$B89,donnees!$F$2:$F$420) -> 31,901.89 $ | D89: =SUMIF(donnees!$B$2:$B$420,$B89,donnees!$G$2:$G$420) -> 18,934.81 $ | E89: classe0 | F89: 0.5935325462 | G89: 87 | H89: Haute-Vienne (87) | P89: Côte-d'Or89 | Q89: Côte-d'Or | R89: Riz | S89: =donnees!E89 -> 8,244 $ | T89: =donnees!G89 -> 4,188 $
A90: 88 | B90: Vosges | C90: =SUMIF(donnees!$B$2:$B$420,$B90,donnees!$F$2:$F$420) -> 13,168.50 $ | D90: =SUMIF(donnees!$B$2:$B$420,$B90,donnees!$G$2:$G$420) -> 14,706.00 $ | E90: classe3 | F90: 1.116755895 | G90: 88 | H90: Vosges (88) | P90: Côte-d'Or90 | Q90: Côte-d'Or | R90: Lait | S90: =donnees!E90 -> 6,696 $ | T90: =donnees!G90 -> 4,113 $
A91: 89 | B91: Yonne | C91: =SUMIF(donnees!$B$2:$B$420,$B91,donnees!$F$2:$F$420) -> 9,461.39 $ | D91: =SUMIF(donnees!$B$2:$B$420,$B91,donnees!$G$2:$G$420) -> 15,352.84 $ | E91: classe3 | F91: 1.622683348 | G91: 89 | H91: Yonne (89) | P91: Côte-d'Or91 | Q91: Côte-d'Or | R91: Yaourt | S91: =donnees!E91 -> 2,052 $ | T91: =donnees!G91 -> 3,249 $
A92: 90 | B92: Territoire de Belfort | C92: =SUMIF(donnees!$B$2:$B$420,$B92,donnees!$F$2:$F$420) -> 19,817.81 $ | D92: =SUMIF(donnees!$B$2:$B$420,$B92,donnees!$G$2:$G$420) -> 14,946.67 $ | E92: classe1 | F92: 0.7542039206 | G92: 90 | H92: Territoire de Belfort (90) | P92: Côte-d'Or92 | Q92: Côte-d'Or | R92: Fromage | S92: =donnees!E92 -> 1,362 $ | T92: =donnees!G92 -> 2,435 $
A93: 91 | B93: Essonne | C93: =SUMIF(donnees!$B$2:$B$420,$B93,donnees!$F$2:$F$420) -> 18,496.50 $ | D93: =SUMIF(donnees!$B$2:$B$420,$B93,donnees!$G$2:$G$420) -> 10,548.00 $ | E93: classe0 | F93: 0.5702700511 | G93: 91 | H93: Essonne (91) | P93: Côte-d'Or93 | Q93: Côte-d'Or | R93: Sucre | S93: =donnees!E93 -> 6,772 $ | T93: =donnees!G93 -> 2,623 $
A94: 92 | B94: Hauts-de-Seine | C94: =SUMIF(donnees!$B$2:$B$420,$B94,donnees!$F$2:$F$420) -> 23,073.76 $ | D94: =SUMIF(donnees!$B$2:$B$420,$B94,donnees!$G$2:$G$420) -> 16,981.22 $ | E94: classe0 | F94: 0.7359537414 | G94: 92 | H94: Hauts-de-Seine (92) | P94: Côtes-d'Armor94 | Q94: Côtes-d'Armor | R94: Sucre | S94: =donnees!E94 -> 3,461 $ | T94: =donnees!G94 -> 3,230 $
A95: 93 | B95: Seine-Saint-Denis | C95: =SUMIF(donnees!$B$2:$B$420,$B95,donnees!$F$2:$F$420) -> 23,542.30 $ | D95: =SUMIF(donnees!$B$2:$B$420,$B95,donnees!$G$2:$G$420) -> 19,510.90 $ | E95: classe1 | F95: 0.8287592971 | G95: 93 | H95: Seine-Saint-Denis (93) | P95: Côtes-d'Armor95 | Q95: Côtes-d'Armor | R95: Yaourt | S95: =donnees!E95 -> 1,257 $ | T95: =donnees!G95 -> 1,649 $
A96: 94 | B96: Val-de-Marne | C96: =SUMIF(donnees!$B$2:$B$420,$B96,donnees!$F$2:$F$420) -> 11,540.13 $ | D96: =SUMIF(donnees!$B$2:$B$420,$B96,donnees!$G$2:$G$420) -> 19,213.07 $ | E96: classe3 | F96: 1.66489199 | G96: 94 | H96: Val-de-Marne (94) | P96: Côtes-d'Armor96 | Q96: Côtes-d'Armor | R96: Fromage | S96: =donnees!E96 -> 3,342 $ | T96: =donnees!G96 -> 2,988 $
A97: 95 | B97: Val-d'Oise | C97: =SUMIF(donnees!$B$2:$B$420,$B97,donnees!$F$2:$F$420) -> 15,626.71 $ | D97: =SUMIF(donnees!$B$2:$B$420,$B97,donnees!$G$2:$G$420) -> 16,963.38 $ | E97: classe3 | F97: 1.085537519 | G97: 95 | H97: Val-d'Oise (95) | P97: Creuse97 | Q97: Creuse | R97: Sucre | S97: =donnees!E97 -> 3,881 $ | T97: =donnees!G97 -> 4,042 $
P98: Creuse98 | Q98: Creuse | R98: Fromage | S98: =donnees!E98 -> 607 $ | T98: =donnees!G98 -> 2,156 $
P99: Creuse99 | Q99: Creuse | R99: Lait | S99: =donnees!E99 -> 5,838 $ | T99: =donnees!G99 -> 5,253 $
P100: Creuse100 | Q100: Creuse | R100: Riz | S100: =donnees!E100 -> 5,529 $ | T100: =donnees!G100 -> 3,996 $
P101: Creuse101 | Q101: Creuse | R101: Yaourt | S101: =donnees!E101 -> 2,973 $ | T101: =donnees!G101 -> 2,361 $
P102: Deux-Sèvres102 | Q102: Deux-Sèvres | R102: Lait | S102: =donnees!E102 -> 6,357 $ | T102: =donnees!G102 -> 5,688 $
P103: Deux-Sèvres103 | Q103: Deux-Sèvres | R103: Fromage | S103: =donnees!E103 -> 1,753 $ | T103: =donnees!G103 -> 3,958 $
P104: Deux-Sèvres104 | Q104: Deux-Sèvres | R104: Yaourt | S104: =donnees!E104 -> 3,075 $ | T104: =donnees!G104 -> 3,609 $
P105: Deux-Sèvres105 | Q105: Deux-Sèvres | R105: Riz | S105: =donnees!E105 -> 6,936 $ | T105: =donnees!G105 -> 3,540 $
P106: Deux-Sèvres106 | Q106: Deux-Sèvres | R106: Sucre | S106: =donnees!E106 -> 5,910 $ | T106: =donnees!G106 -> 2,798 $
P107: Dordogne107 | Q107: Dordogne | R107: Sucre | S107: =donnees!E107 -> 2,864 $ | T107: =donnees!G107 -> 4,352 $
P108: Dordogne108 | Q108: Dordogne | R108: Riz | S108: =donnees!E108 -> 3,114 $ | T108: =donnees!G108 -> 6,852 $
P109: Dordogne109 | Q109: Dordogne | R109: Lait | S109: =donnees!E109 -> 1,497 $ | T109: =donnees!G109 -> 3,012 $
P110: Dordogne110 | Q110: Dordogne | R110: Yaourt | S110: =donnees!E110 -> 1,418 $ | T110: =donnees!G110 -> 2,823 $
P111: Doubs111 | Q111: Doubs | R111: Lait | S111: =donnees!E111 -> 3,114 $ | T111: =donnees!G111 -> 7,287 $
P112: Doubs112 | Q112: Doubs | R112: Sucre | S112: =donnees!E112 -> 3,027 $ | T112: =donnees!G112 -> 2,653 $
P113: Doubs113 | Q113: Doubs | R113: Riz | S113: =donnees!E113 -> 3,927 $ | T113: =donnees!G113 -> 2,730 $
P114: Drôme114 | Q114: Drôme | R114: Yaourt | S114: =donnees!E114 -> 1,229 $ | T114: =donnees!G114 -> 1,338 $
P115: Drôme115 | Q115: Drôme | R115: Fromage | S115: =donnees!E115 -> 3,177 $ | T115: =donnees!G115 -> 3,692 $
P116: Drôme116 | Q116: Drôme | R116: Sucre | S116: =donnees!E116 -> 384 $ | T116: =donnees!G116 -> 5,124 $
P117: Drôme117 | Q117: Drôme | R117: Lait | S117: =donnees!E117 -> 3,837 $ | T117: =donnees!G117 -> 7,413 $
P118: Drôme118 | Q118: Drôme | R118: Riz | S118: =donnees!E118 -> 402 $ | T118: =donnees!G118 -> 5,478 $
P119: Essonne119 | Q119: Essonne | R119: Lait | S119: =donnees!E119 -> 5,319 $ | T119: =donnees!G119 -> 5,055 $
P120: Essonne120 | Q120: Essonne | R120: Yaourt | S120: =donnees!E120 -> 2,889 $ | T120: =donnees!G120 -> 2,397 $
P121: Essonne121 | Q121: Essonne | R121: Riz | S121: =donnees!E121 -> 7,209 $ | T121: =donnees!G121 -> 3,096 $
P122: Eure122 | Q122: Eure | R122: Fromage | S122: =donnees!E122 -> 3,773 $ | T122: =donnees!G122 -> 2,341 $
P123: Eure123 | Q123: Eure | R123: Yaourt | S123: =donnees!E123 -> 3,036 $ | T123: =donnees!G123 -> 2,997 $
P124: Eure124 | Q124: Eure | R124: Riz | S124: =donnees!E124 -> 7,932 $ | T124: =donnees!G124 -> 3,651 $
P125: Eure125 | Q125: Eure | R125: Sucre | S125: =donnees!E125 -> 4,941 $ | T125: =donnees!G125 -> 4,081 $
P126: Eure-et-Loir126 | Q126: Eure-et-Loir | R126: Riz | S126: =donnees!E126 -> 5,061 $ | T126: =donnees!G126 -> 4,341 $
P127: Eure-et-Loir127 | Q127: Eure-et-Loir | R127: Sucre | S127: =donnees!E127 -> 2,603 $ | T127: =donnees!G127 -> 3,457 $
P128: Eure-et-Loir128 | Q128: Eure-et-Loir | R128: Fromage | S128: =donnees!E128 -> 7,185 $ | T128: =donnees!G128 -> 5,408 $
P129: Eure-et-Loir129 | Q129: Eure-et-Loir | R129: Lait | S129: =donnees!E129 -> 309 $ | T129: =donnees!G129 -> 3,462 $
P130: Eure-et-Loir130 | Q130: Eure-et-Loir | R130: Yaourt | S130: =donnees!E130 -> 5,616 $ | T130: =donnees!G130 -> 3,531 $
P131: Finistère131 | Q131: Finistère | R131: Yaourt | S131: =donnees!E131 -> 411 $ | T131: =donnees!G131 -> 1,653 $
P132: Finistère132 | Q132: Finistère | R132: Riz | S132: =donnees!E132 -> 1,767 $ | T132: =donnees!G132 -> 6,369 $
P133: Finistère133 | Q133: Finistère | R133: Fromage | S133: =donnees!E133 -> 5,843 $ | T133: =donnees!G133 -> 5,916 $
P134: Finistère134 | Q134: Finistère | R134: Sucre | S134: =donnees!E134 -> 34 $ | T134: =donnees!G134 -> 4,657 $
P135: Gard135 | Q135: Gard | R135: Riz | S135: =donnees!E135 -> 1,683 $ | T135: =donnees!G135 -> 4,593 $
P136: Gard136 | Q136: Gard | R136: Fromage | S136: =donnees!E136 -> 3,406 $ | T136: =donnees!G136 -> 4,233 $
P137: =Q137&ROW() -> Gard137 | Q137: Gard | R137: Lait | S137: =donnees!E137 -> 3,126 $ | T137: =donnees!G137 -> 5,793 $
P138: Gard138 | Q138: Gard | R138: Sucre | S138: =donnees!E138 -> 7,029 $ | T138: =donnees!G138 -> 3,970 $
P139: Gard139 | Q139: Gard | R139: Yaourt | S139: =donnees!E139 -> 1,278 $ | T139: =donnees!G139 -> 3,842 $
P140: Gers140 | Q140: Gers | R140: Riz | S140: =donnees!E140 -> 5,115 $ | T140: =donnees!G140 -> 7,236 $
P141: Gers141 | Q141: Gers | R141: Sucre | S141: =donnees!E141 -> 3,990 $ | T141: =donnees!G141 -> 4,402 $
P142: Gers142 | Q142: Gers | R142: Lait | S142: =donnees!E142 -> 7,770 $ | T142: =donnees!G142 -> 5,229 $
P143: Gers143 | Q143: Gers | R143: Fromage | S143: =donnees!E143 -> 5,852 $ | T143: =donnees!G143 -> 3,791 $
P144: Gironde144 | Q144: Gironde | R144: Sucre | S144: =donnees!E144 -> 3,453 $ | T144: =donnees!G144 -> 4,911 $
P145: Gironde145 | Q145: Gironde | R145: Yaourt | S145: =donnees!E145 -> 3,510 $ | T145: =donnees!G145 -> 3,890 $
P146: Gironde146 | Q146: Gironde | R146: Fromage | S146: =donnees!E146 -> 4,657 $ | T146: =donnees!G146 -> 4,068 $
P147: Gironde147 | Q147: Gironde | R147: Lait | S147: =donnees!E147 -> 7,311 $ | T147: =donnees!G147 -> 2,670 $
P148: Haute-Corse148 | Q148: Haute-Corse | R148: Sucre | S148: =donnees!E148 -> 6,545 $ | T148: =donnees!G148 -> 1,904 $
P149: Haute-Corse149 | Q149: Haute-Corse | R149: Riz | S149: =donnees!E149 -> 9,600 $ | T149: =donnees!G149 -> 3,438 $
P150: Haute-Corse150 | Q150: Haute-Corse | R150: Fromage | S150: =donnees!E150 -> 4,468 $ | T150: =donnees!G150 -> 5,333 $
P151: Haute-Corse151 | Q151: Haute-Corse | R151: Lait | S151: =donnees!E151 -> 1,995 $ | T151: =donnees!G151 -> 3,912 $
P152: Haute-Corse152 | Q152: Haute-Corse | R152: Yaourt | S152: =donnees!E152 -> 2,024 $ | T152: =donnees!G152 -> 1,454 $
P153: Haute-Garonne153 | Q153: Haute-Garonne | R153: Fromage | S153: =donnees!E153 -> 616 $ | T153: =donnees!G153 -> 4,389 $
P154: Haute-Garonne154 | Q154: Haute-Garonne | R154: Lait | S154: =donnees!E154 -> 4,941 $ | T154: =donnees!G154 -> 7,503 $
P155: Haute-Garonne155 | Q155: Haute-Garonne | R155: Yaourt | S155: =donnees!E155 -> 699 $ | T155: =donnees!G155 -> 1,367 $
P156: Haute-Garonne156 | Q156: Haute-Garonne | R156: Riz | S156: =donnees!E156 -> 180 $ | T156: =donnees!G156 -> 4,095 $
P157: Haute-Garonne157 | Q157: Haute-Garonne | R157: Sucre | S157: =donnees!E157 -> 2,989 $ | T157: =donnees!G157 -> 2,808 $
P158: Haute-Loire158 | Q158: Haute-Loire | R158: Lait | S158: =donnees!E158 -> 5,709 $ | T158: =donnees!G158 -> 6,867 $
P159: Haute-Loire159 | Q159: Haute-Loire | R159: Yaourt | S159: =donnees!E159 -> 152 $ | T159: =donnees!G159 -> 3,092 $
P160: Haute-Loire160 | Q160: Haute-Loire | R160: Sucre | S160: =donnees!E160 -> 7,936 $ | T160: =donnees!G160 -> 2,981 $
P161: Haute-Loire161 | Q161: Haute-Loire | R161: Fromage | S161: =donnees!E161 -> 1,122 $ | T161: =donnees!G161 -> 3,956 $
P162: Haute-Loire162 | Q162: Haute-Loire | R162: Riz | S162: =donnees!E162 -> 4,983 $ | T162: =donnees!G162 -> 7,098 $
P163: Haute-Marne163 | Q163: Haute-Marne | R163: Fromage | S163: =donnees!E163 -> 1,969 $ | T163: =donnees!G163 -> 4,943 $
P164: Haute-Marne164 | Q164: Haute-Marne | R164: Yaourt | S164: =donnees!E164 -> 1,065 $ | T164: =donnees!G164 -> 4,064 $
P165: Haute-Marne165 | Q165: Haute-Marne | R165: Lait | S165: =donnees!E165 -> 660 $ | T165: =donnees!G165 -> 3,150 $
P166: Haute-Marne166 | Q166: Haute-Marne | R166: Riz | S166: =donnees!E166 -> 1,584 $ | T166: =donnees!G166 -> 7,005 $
P167: Haute-Marne167 | Q167: Haute-Marne | R167: Sucre | S167: =donnees!E167 -> 1,134 $ | T167: =donnees!G167 -> 5,001 $
P168: Hautes-Alpes168 | Q168: Hautes-Alpes | R168: Yaourt | S168: =donnees!E168 -> 686 $ | T168: =donnees!G168 -> 2,721 $
P169: Hautes-Alpes169 | Q169: Hautes-Alpes | R169: Lait | S169: =donnees!E169 -> 1,815 $ | T169: =donnees!G169 -> 6,279 $
P170: Hautes-Alpes170 | Q170: Hautes-Alpes | R170: Riz | S170: =donnees!E170 -> 5,097 $ | T170: =donnees!G170 -> 5,565 $
P171: Haute-Saône171 | Q171: Haute-Saône | R171: Lait | S171: =donnees!E171 -> 7,593 $ | T171: =donnees!G171 -> 2,397 $
P172: Haute-Saône172 | Q172: Haute-Saône | R172: Riz | S172: =donnees!E172 -> 5,571 $ | T172: =donnees!G172 -> 2,799 $
P173: Haute-Saône173 | Q173: Haute-Saône | R173: Sucre | S173: =donnees!E173 -> 3,276 $ | T173: =donnees!G173 -> 5,102 $
P174: Haute-Savoie174 | Q174: Haute-Savoie | R174: Yaourt | S174: =donnees!E174 -> 2,628 $ | T174: =donnees!G174 -> 2,012 $
P175: Haute-Savoie175 | Q175: Haute-Savoie | R175: Lait | S175: =donnees!E175 -> 5,934 $ | T175: =donnees!G175 -> 4,989 $
P176: Haute-Savoie176 | Q176: Haute-Savoie | R176: Riz | S176: =donnees!E176 -> 4,767 $ | T176: =donnees!G176 -> 4,059 $
P177: Haute-Savoie177 | Q177: Haute-Savoie | R177: Fromage | S177: =donnees!E177 -> 6,356 $ | T177: =donnees!G177 -> 3,410 $
P178: Haute-Savoie178 | Q178: Haute-Savoie | R178: Sucre | S178: =donnees!E178 -> 5,170 $ | T178: =donnees!G178 -> 3,789 $
P179: Hautes-Pyrénées179 | Q179: Hautes-Pyrénées | R179: Fromage | S179: =donnees!E179 -> 5,782 $ | T179: =donnees!G179 -> 5,093 $
P180: Hautes-Pyrénées180 | Q180: Hautes-Pyrénées | R180: Yaourt | S180: =donnees!E180 -> 4,856 $ | T180: =donnees!G180 -> 3,261 $
P181: Hautes-Pyrénées181 | Q181: Hautes-Pyrénées | R181: Riz | S181: =donnees!E181 -> 10,473 $ | T181: =donnees!G181 -> 7,884 $
P182: Hautes-Pyrénées182 | Q182: Hautes-Pyrénées | R182: Sucre | S182: =donnees!E182 -> 6,814 $ | T182: =donnees!G182 -> 2,491 $
P183: Hautes-Pyrénées183 | Q183: Hautes-Pyrénées | R183: Lait | S183: =donnees!E183 -> 867 $ | T183: =donnees!G183 -> 5,745 $
P184: Haute-Vienne184 | Q184: Haute-Vienne | R184: Lait | S184: =donnees!E184 -> 8,676 $ | T184: =donnees!G184 -> 4,770 $
P185: Haute-Vienne185 | Q185: Haute-Vienne | R185: Yaourt | S185: =donnees!E185 -> 1,286 $ | T185: =donnees!G185 -> 3,831 $
P186: Haute-Vienne186 | Q186: Haute-Vienne | R186: Sucre | S186: =donnees!E186 -> 4,364 $ | T186: =donnees!G186 -> 4,376 $
P187: Haute-Vienne187 | Q187: Haute-Vienne | R187: Riz | S187: =donnees!E187 -> 8,163 $ | T187: =donnees!G187 -> 3,309 $
P188: Haute-Vienne188 | Q188: Haute-Vienne | R188: Fromage | S188: =donnees!E188 -> 4,101 $ | T188: =donnees!G188 -> 2,649 $
P189: Haut-Rhin189 | Q189: Haut-Rhin | R189: Sucre | S189: =donnees!E189 -> 4,466 $ | T189: =donnees!G189 -> 4,215 $
P190: Haut-Rhin190 | Q190: Haut-Rhin | R190: Riz | S190: =donnees!E190 -> 11,541 $ | T190: =donnees!G190 -> 4,542 $
P191: Haut-Rhin191 | Q191: Haut-Rhin | R191: Lait | S191: =donnees!E191 -> 1,647 $ | T191: =donnees!G191 -> 6,723 $
P192: Haut-Rhin192 | Q192: Haut-Rhin | R192: Fromage | S192: =donnees!E192 -> 926 $ | T192: =donnees!G192 -> 3,626 $
P193: Hauts-de-Seine193 | Q193: Hauts-de-Seine | R193: Fromage | S193: =donnees!E193 -> 1,476 $ | T193: =donnees!G193 -> 1,817 $
P194: Hauts-de-Seine194 | Q194: Hauts-de-Seine | R194: Sucre | S194: =donnees!E194 -> 2,279 $ | T194: =donnees!G194 -> 2,086 $
P195: Hauts-de-Seine195 | Q195: Hauts-de-Seine | R195: Lait | S195: =donnees!E195 -> 450 $ | T195: =donnees!G195 -> 2,862 $
P196: Hauts-de-Seine196 | Q196: Hauts-de-Seine | R196: Riz | S196: =donnees!E196 -> 10,941 $ | T196: =donnees!G196 -> 7,710 $
P197: Hauts-de-Seine197 | Q197: Hauts-de-Seine | R197: Yaourt | S197: =donnees!E197 -> 4,085 $ | T197: =donnees!G197 -> 2,507 $
P198: Hérault198 | Q198: Hérault | R198: Lait | S198: =donnees!E198 -> 10,458 $ | T198: =donnees!G198 -> 4,374 $
P199: Hérault199 | Q199: Hérault | R199: Yaourt | S199: =donnees!E199 -> 5,006 $ | T199: =donnees!G199 -> 3,720 $
P200: Hérault200 | Q200: Hérault | R200: Riz | S200: =donnees!E200 -> 3,435 $ | T200: =donnees!G200 -> 5,505 $
... 220 more rows
